Workbook

Sheet Inputs
A1: This excel sheet uses MACRO's. You will need to enable them before proceeding. Zoom each sheet according to your convenience
A3: Read and complete entries in this column first
A4: Fill only cell in green | D4: The corpus that you enter will divided into 5 buckets, that is different instruments as listed below.
A5: Current monthly expenses | B5: 100000 | D5: Enter the % allocation to each bucket. Bucket 1 represents a fixed income instrument like a FD. So returns will not vary
A6: Time to retirement | B6: 0 | D6: For the other buckets you need to enter an average return and variation from this average (explained below)
A7: inflation prior retirement | B7: 0.08 | D7: The simulator will randomly generate (uncorrelated) returns for each year in retirement based on the input average return and variation
A8: Years in retirement | B8: 25 | D8: Income for first few retirement years will come from bucket 1. This allows enough time for the sum invested in other buckets
A9: inflation post-retirement | B9: 0.08 | D9: to appreciate. You can transfer from buckets 2-5 to bucket 1 if (a) you have made good returns in a year or (b) you don't have
A10: Annual expenses in 1st year of retirement | B10: =B5*12*(1+B7)^(B6) -> 1200000 | D10: enough funds in bucket 1 to continue. You can transfer sums among buckets 2-5.
A11: Average return for post-retirement investments | B11: 0.08 | D11: Usually it is recommend that one makes a transfer to bucket 1 only if the average compounded rate of return is close to historcial
A12: Total corpus needed to meet expenses | B12: =PV((1+retroi)/(1+rinf)-1,k,-prepen1,,1) -> 30000000 | D12: returns (10-15% approx.). Unfortunately inflation in India hovers around 8% and this may not work
A13: Thus while the corpus grows at an average rate you draw | D13: This approach is known as defined withdrawals strategy or the retirement bucket strategy
A14: from it each year accoring to your expenses (indexed to inflation). | D14: The idea of the simulator is to try and prolong the life of the corpus (you chose!) while accouting for inflation-indexed expenses.
A15: This corpus will become zero at the end of retirement period | D15: With intelligent transfers can you beat the standard withdrawal method? If you are not used to equity investing then
A16: This is known as the systematic withdrawals strategy | D16: you will need to try several times! Don't give up. This strategy can make a big difference to your retirement plan
A17: Is there a way to cope with a lower corpus?
A18: Is there a way to make the corpus last longer? | E18: Instrument | F18: Allocation | G18: Fixed Return | H18: This allocation (bucket 1) will approx. last for (years)*
A19: This simulator attempts to see if this is possible* | D19: Bucket 1 | E19: Fixed Income (Bank FD) | F19: 0.5 | G19: 0.08 | H19: =NPER((1+_min1)/(1+rinf)-1,-B33,F19*B20,,1) -> 2.8125
A20: Enter corpus you think will fund your retirement | B20: 15000000 | G20: Average Return | H20: Variation from average return (std. dev.)
A21: If you don't want to use the above amt take a guess | D21: Bucket 2 | E21: Debt Fund | F21: 0.1 | G21: 0.09 | H21: 0.03 | O21: =B20*alloc1/100000 -> 75
A22: Rememeber it would be tough to cope with a much lower corpus | D22: Bucket 3 | E22: Hybrid: Balanced Fund | F22: 0.2 | G22: 0.1 | H22: 0.1 | O22: =ROUND(Inputs!F19*Inputs!B20,0)/100000 -> 75
D23: Bucket 4 | E23: Large-cap (stocks/MF) | F23: 0.1 | G23: 0.12 | H23: 0.2 | O23: =ROUND(Inputs!F21*Inputs!B20,0)/100000 -> 15
A24: If you are going to receive an annuity ensure the corpus amount you enter | D24: Bucket 5 | E24: Mid-/Small-cap (stocks/MF) | F24: 0.1 | G24: 0.15 | H24: 0.3
A25: above does not include the sum that will be used to provide the annuity | D25: * The idea is to use this time to let the sum in other buckets appreciate AND transfer at oppurtune times into bucket 1. Recommended time 8-10 years.
A26: Enter the annuity or pension you will receive | D26: Important: If the allocation column turns red, ensure the allocations add up to 100% before proceeding
A27: This is constant throughout retirement | D27: Note on Variation from average return: Suppose we consider an average of 15% and variation (or standard deviation of 40%)
A28: Enter annual income from other sources during | D28: If we use a so-called normal distribution (the most common in nature) then about 68% of all return will lie centered about the average
A29: 1st year of retirement | D29: return. Such returns will range from (15%-20%) to (15% + 20%) or -5% to 35%. Here 20% is half the standard deviation. Lower the
A30: Annual rate of increase of this income | B30: 0.1 | D30: standard deviation lower the volatility. How justified are we in using a normal distribution? It works reasonably with US
D31: market data. However we don't have enough data on Indian markets to see if this is suitable. However given the omnipresence of such
A32: Net annual expenses to be covered from corpus | D32: distributions in nature it is a safe bet as long as we keep in mind real life is more complicated than we can ever imagine!
A33: in the first year of retirement | B33: =(prepen1)-(pension)-(income) -> 1200000
A35: Once you have read & completed the entried in this sheet, proceed to the 'instructions' page to learn how to use the the simulator. You could then proceed to the 'Simulator' page
A37: Systemactic withdrawals can be made in two ways: One with fixed average return as mentioned above or it can be made with varying returns from different buckets.
A38: If buckets are used the (weighted) average of returns from each bucket is used. The simulator calculates the total corpus in each year of retirement using all the 3 methods.
A40: * Please remember this is a simulation tool. It presents a series of situations with high volatility in returns to help you understand the factors that affect retirement corpus management. Althought subect to reasonable
A41: assumptions it can never susbtitute for real life scenarios, The take home message is managing a retirement corpus is an active exercise. Passive statergies like relying on annuities or a pension will not work for most!

Sheet Instructions - Simulator sheet
A1: 1. To obtain a fresh set of random returns press this
L2: 2. To advance to the next year press this | T2: 3.For the same interest rate data set click this to redo the exercise!
A5: 4. Before advancing remember to review: (a). balances in each bucket.
A6: (b). compounded annual growth rate (CAGR) of the buckets.
A7: A good thumb rule is to sell if the CAGR is close to or above
A8: the average rate of each bucket you have entered in the 'Inputs' sheet
A20: 6.In the screenshot 21 is the current year. However bucket 1 has funds only
A21: up to year 20. So you cannot proceed unless you transfer funds into bucket 1
A22: If funds are not available its game over!
A24: 7. The annual corpus obtained by three stratergies are plotted here to
A25: evaluate the progress of the bucket statergy
A26: To accommodate the plot only the last years in the table will be displayed

Sheet Simulator
AO1: =IF(Inputs!F19+Inputs!F21+Inputs!F22+Inputs!F23+Inputs!F24=100%,1,0) -> 1
E3: Compound Annual Growth Rate | O3: Current Year | Q3: =MAX(AQ12:AQ111) -> 26 | AN3: 14 | AO3: =SUM(AQ12:AQ111) -> 351
E4: Bucket 1 | F4: Bucket 2 | H4: Bucket 3 | J4: Bucket 4 | M4: Bucket 5 | O4: Bucket 1 can support expenses up to year | S4: =SUM(AN12:AN1111)-1 -> 2 | U4: If cells in the 'transfers' coumns turn red it means you are trying to transfer
E5: =_min1 -> 0.08 | F5: 0.08970079601 | H5: 0.07729355977 | J5: 0.0921769229 | M5: 0.469807921 | O5: To continue transfer | Q5: =SUM(AM12:AM111) -> 2.9968 | R5: lakhs to bucket 1 | U5: more than the available balance. Decrease amt until the 'red' goes away | AO5: 1
D6: Random Annual Returns | O6: BALANCES (Lakhs) | U6: TRANSFERS (Lakhs) | AO6: Show
B7: Net annual | E7: Bucket 1 | F7: Bucket 2 | H7: Bucket 3 | J7: Bucket 4 | M7: Bucket 5 | O7: Bucket 1 | P7: Bucket 2 | Q7: Bucket 3 | R7: Bucket 4 | S7: Bucket 5 | U7: Bucket 2 | W7: Bucket 3 | Y7: Bucket 4 | AA7: Bucket 5 | AO7: Hide
B8: expenses | E8: Fixed | F8: Debt Fund | H8: Hybrid | J8: Large-cap | M8: Mid/Small | O8: Fixed | P8: Debt Fund | Q8: Hybrid | R8: Large-cap | S8: Mid/Small | U8: Debt Fund | W8: Hybrid | Y8: Large-cap | AA8: Mid/Small Cap
B9: that will be | E9: (eg. FDs) | H9: Bal. Fund | J9: Stocks/MF | M9: Stocks/MF | O9: (eg. FDs) | Q9: Bal. Fund | R9: Stocks/MF | S9: Stocks/MF | W9: Balanced Fund | Y9: Stocks/MF | AA9: Stocks/MF | AO9: Bucket 2
B10: covered | E10: Income | M10: Cap | O10: Income | S10: Cap | U10: Transfers to | W10: Transfers to | Y10: Transfers to | AA10: Transfers to | AD10: Year | AO10: Bucket 3 | AR10: Bucket | AS10: sys wit | AT10: sys wit | AU10: Your corpus | AV10: B2 | AX10: B3 | AZ10: B4 | BB10: B5
A11: Year | B11: by corpus | U11: Bucket 1 | V11: Bucket 3 | W11: Bucket 1 | X11: Bucket 2 | Y11: Bucket 1 | Z11: Bucket 2 | AA11: Bucket 1 | AB11: Bucket 2 | AD11: Year | AO11: Bucket 4 | AR11: strategy | AS11: avg ret | AT11: rand ret | AW11: CAGR | AY11: CAGR | BA11: CAGR | BC11: CAGR
A12: 0 | B12: =(prepen1*(1+rinf)^A12/100000)-(pension/100000)-(income*(1+incrate)^A12/100000) -> 12 | O12: =ROUND(Inputs!F19*Inputs!B20,0)/100000 -> 75 | P12: =ROUND(Inputs!F21*Inputs!B20,0)/100000 -> 15 | Q12: =ROUND(Inputs!B20*Inputs!F22,0)/100000 -> 30 | R12: =ROUND(Inputs!B20*Inputs!F23,0)/100000 -> 15 | S12: =ROUND(Inputs!F24*Inputs!B20,0)/100000 -> 15 | AD12: 0 | AO12: Bucket 5 | AR12: =Inputs!B20/100000 -> 67.5 | AS12: =(Inputs!B20)/100000 -> 67.5 | AT12: =Inputs!B20/100000 -> 67.5 | AU12: =(Inputs!B20)/100000 -> 67.5 | AV12: 1 | AX12: 1 | AZ12: 1 | BB12: 1
A13: =A12+1 -> 1 | B13: =(prepen1*(1+rinf)^(A13-1)/100000)-(pension/100000)-(income*(1+incrate)^(A13-1)/100000) -> 12 | D13: =IF(E13<>"",E13,_min1) -> 0.08 | E13: 0.08 | F13: 0.08970079601 | G13: =IF(F13<>"",F13,NORMINV(RAND(),mean2,stdev2)) -> 0.08970079601 | H13: 0.07729355977 | I13: =IF(H13<>"",H13,NORMINV(RAND(),mean3,stdev3)) -> 0.07729355977 | J13: 0.0921769229 | K13: =IF(J13<>"",J13,NORMINV(RAND(),mean4,stdev4)) -> 0.0921769229 | L13: =IF(M13<>"",M13,NORMINV(RAND(),mean5,stdev5)) -> 0.469807921 | M13: 0.469807921 | O13: =ROUND((O12-B13+U12+W12+Y12+AA12)*(1+D13),0) -> 68 | P13: =ROUND((P12-U12-V12+IF(trans3="bucket 2",X12)+IF(trans4="bucket 2",Z12)+IF(trans5="bucket 2",AB12))*(1+F13),0) -> 16 | Q13: =ROUND((Q12-W12-X12+IF(trans2="bucket 3",V12)+IF(trans4="bucket 3",Z12)+IF(trans5="bucket 3",AB12))*(1+H13),0) -> 15 | R13: =ROUND((R12-Y12-Z12+IF(trans2="bucket 4",V12)+IF(trans3="bucket 4",X12)+IF(trans5="bucket 4",AB12))*(1+J13),0) -> 7 | S13: =ROUND((S12-AA12-AB12+IF(trans2="bucket 5",V12)+IF(trans3="bucket 5",X12)+IF(trans4="bucket 5",Z12))*(1+M13),0) -> 10 | AD13: =AD12+1 -> 1 | AL13: =(1+alloc1*Simulator!E13+alloc2*Simulator!F13+alloc3*Simulator!H13+alloc4*Simulator!J13+alloc5*Simulator!M13) -> 1.120627276 | AM13: =IF(O13<0,B13-O12,0) -> 0 | AN13: =IF(AM13<>0,A13,0) -> 0 | AQ13: 1 | AR13: =IF(AQ13<>0,IF(SUM(O13:S13)<0,NA(),SUM(O13:S13)),NA()) -> 62 | AS13: =IF(AQ13<>0,IF(AS12- B13<0,NA(),(AS12-B13)*(1+retroi)),NA()) -> 59.94 | AT13: =IF(AQ13<>0,IF((AT12-B13)*(1+alloc1*Simulator!E13+alloc2*Simulator!F13+alloc3*Simulator!H13+alloc4*Simulator!J13+alloc5*Simulator!M13)<0,NA(),(AT12-B13)*(1+alloc1*Simulator!E13+alloc2*Simulator!F13+alloc3*Simulator!H13+alloc4*Simulator!J13+alloc5*Simulator!M13)),NA()) -> 62.19481381 | AU13: =IF(AQ13<>0,IF(AU12-B13<0,NA(),(AU12-B13)*(1+retroi)),NA()) -> 59.94 | AV13: =AV12*(1+F13) -> 1.089700796 | AW13: =(AV13/$AV$12)^(1/AQ13)-1 -> 0.08970079601 | AX13: =AX12*(1+H13) -> 1.07729356 | AY13: =(AX13/$AX$12)^(1/AQ13)-1 -> 0.07729355977 | AZ13: =AZ12*(1+J13) -> 1.092176923 | BA13: =(AZ13/$AZ$12)^(1/AQ13)-1 -> 0.0921769229 | BB13: =BB12*(1+M13) -> 1.469807921 | BC13: =(BB13/$BB$12)^(1/AQ13)-1 -> 0.469807921
A14: 2 | B14: 12.96 | D14: 0.08 | E14: 0.08 | F14: 0.09745405754 | G14: 0.09745405754 | H14: 0.17120044 | I14: 0.17120044 | J14: -0.2185246716 | K14: -0.2185246716 | L14: -0.04342030699 | M14: -0.04342030699 | O14: =ROUND((O13-B14+U13+W13+Y13+AA13)*(1+D14),0) -> 11 | P14: =ROUND((P13-U13-V13+IF(trans3="bucket 2",X13)+IF(trans4="bucket 2",Z13)+IF(trans5="bucket 2",AB13))*(1+F14),0) -> 8 | Q14: 18 | R14: 5 | S14: 10 | AD14: 2 | AL14: =(1+alloc1*Simulator!E14+alloc2*Simulator!F14+alloc3*Simulator!H14+alloc4*Simulator!J14+alloc5*Simulator!M14) -> 1.057790996 | AM14: =IF(SUM($AM$13:AM13)<>0,0,IF(O14<0,B14-O13,0)) -> 0 | AN14: =IF(AM14<>0,A14,0) -> 0 | AR14: =IF(AQ14<>0,IF(SUM(O14:S14)<0,NA(),SUM(O14:S14)),NA()) -> 52 | AS14: 50.7384 | AT14: =IF(AQ14<>0,IF((AT13-B14)*(1+alloc1*Simulator!E14+alloc2*Simulator!F14+alloc3*Simulator!H14+alloc4*Simulator!J14+alloc5*Simulator!M14)<0,NA(),(AT13-B14)*(1+alloc1*Simulator!E14+alloc2*Simulator!F14+alloc3*Simulator!H14+alloc4*Simulator!J14+alloc5*Simulator!M14)),NA()) -> 52.08014274 | AU14: 50.7384 | AV14: =AV13*(1+F14) -> 1.19589656 | AW14: 0.0935705556 | AX14: =AX13*(1+H14) -> 1.261726691 | AY14: =(AX14/$AX$12)^(1/AQ14)-1 -> 0.1232660821 | AZ14: =AZ13*(1+J14) -> 0.8535093195 | BA14: =(AZ14/$AZ$12)^(1/AQ14)-1 -> -0.07614431887 | BB14: =BB13*(1+M14) -> 1.40598841 | BC14: =(BB14/$BB$12)^(1/AQ14)-1 -> 0.1857438213
A15: 3 | B15: 13.9968 | D15: 0.08 | E15: 0.08 | F15: 0.1262151381 | G15: 0.1262151381 | H15: 0.2280098847 | I15: 0.2280098847 | J15: 0.3555484644 | K15: 0.3555484644 | L15: -0.04363456029 | M15: -0.04363456029 | O15: -3 | P15: 9 | Q15: 22 | R15: 7 | S15: 10 | AD15: 3 | AL15: =(1+alloc1*Simulator!E15+alloc2*Simulator!F15+alloc3*Simulator!H15+alloc4*Simulator!J15+alloc5*Simulator!M15) -> 1.129414881 | AM15: =IF(SUM($AM$13:AM14)<>0,0,IF(O15<0,B15-O14,0)) -> 2.9968 | AN15: 3 | AO15: Bucket 2 | AR15: 45 | AS15: 39.680928 | AT15: =IF(AQ15<>0,IF((AT14-B15)*(1+alloc1*Simulator!E15+alloc2*Simulator!F15+alloc3*Simulator!H15+alloc4*Simulator!J15+alloc5*Simulator!M15)<0,NA(),(AT14-B15)*(1+alloc1*Simulator!E15+alloc2*Simulator!F15+alloc3*Simulator!H15+alloc4*Simulator!J15+alloc5*Simulator!M15)),NA()) -> 43.01189401 | AU15: 39.680928 | AV15: 1.34683681 | AW15: 0.1043455676 | AX15: 1.549412849 | AY15: 0.1571483783 | AZ15: 1.156973247 | BA15: 0.04980291008 | BB15: 1.344638724 | BC15: 0.1037444634
A16: 4 | B16: 15.116544 | D16: 0.08 | E16: 0.08 | F16: 0.138170885 | G16: 0.138170885 | H16: 0.139230901 | I16: 0.139230901 | J16: 0.3718335036 | K16: 0.3718335036 | L16: 0.08294608154 | M16: 0.08294608154 | O16: -20 | P16: 10 | Q16: 25 | R16: 10 | S16: 11 | AD16: 4 | AL16: =(1+alloc1*Simulator!E16+alloc2*Simulator!F16+alloc3*Simulator!H16+alloc4*Simulator!J16+alloc5*Simulator!M16) -> 1.127141227 | AM16: =IF(SUM($AM$13:AM15)<>0,0,IF(O16<0,B16-O15,0)) -> 0 | AN16: 0 | AO16: Bucket 4 | AR16: 36 | AS16: 26.52953472 | AT16: =IF(AQ16<>0,IF((AT15-B16)*(1+alloc1*Simulator!E16+alloc2*Simulator!F16+alloc3*Simulator!H16+alloc4*Simulator!J16+alloc5*Simulator!M16)<0,NA(),(AT15-B16)*(1+alloc1*Simulator!E16+alloc2*Simulator!F16+alloc3*Simulator!H16+alloc4*Simulator!J16+alloc5*Simulator!M16)),NA()) -> 31.44199905 | AU16: 26.52953472 | AV16: 1.532930444 | AW16: 0.1127064674 | AX16: 1.765138996 | AY16: 0.1526427618 | AZ16: 1.587174664 | BA16: 0.122422026 | BB16: 1.456171237 | BC16: 0.0985077168
A17: 5 | B17: 16.32586752 | D17: 0.08 | E17: 0.08 | F17: 0.1079491889 | G17: 0.1079491889 | H17: 0.1180505655 | I17: 0.1180505655 | J17: 0.2722152486 | K17: 0.2722152486 | L17: 0.1201796685 | M17: 0.1201796685 | O17: -39 | P17: 11 | Q17: 28 | R17: 13 | S17: 12 | AD17: 5 | AL17: =(1+alloc1*Simulator!E17+alloc2*Simulator!F17+alloc3*Simulator!H17+alloc4*Simulator!J17+alloc5*Simulator!M17) -> 1.113644524 | AM17: =IF(SUM($AM$13:AM16)<>0,0,IF(O17<0,B17-O16,0)) -> 0 | AN17: 0 | AO17: Bucket 5 | AR17: 25 | AS17: 11.01996058 | AT17: =IF(AQ17<>0,IF((AT16-B17)*(1+alloc1*Simulator!E17+alloc2*Simulator!F17+alloc3*Simulator!H17+alloc4*Simulator!J17+alloc5*Simulator!M17)<0,NA(),(AT16-B17)*(1+alloc1*Simulator!E17+alloc2*Simulator!F17+alloc3*Simulator!H17+alloc4*Simulator!J17+alloc5*Simulator!M17)),NA()) -> 16.8339971 | AU17: 11.01996058 | AV17: 1.698409042 | AW17: 0.1117533804 | AX17: 1.973514652 | AY17: 0.1456397426 | AZ17: 2.019227809 | BA17: 0.1508986053 | BB17: 1.631173414 | BC17: 0.102808302
A18: 6 | B18: 17.63193692 | D18: 0.08 | E18: 0.08 | F18: 0.1299138837 | G18: 0.1299138837 | H18: 0.08704747915 | I18: 0.08704747915 | J18: 0.1109879721 | K18: 0.1109879721 | L18: 0.5240063998 | M18: 0.5240063998 | O18: -61 | P18: 12 | Q18: 30 | R18: 14 | S18: 18 | AD18: 6 | AL18: =(1+alloc1*Simulator!E18+alloc2*Simulator!F18+alloc3*Simulator!H18+alloc4*Simulator!J18+alloc5*Simulator!M18) -> 1.133900321 | AM18: =IF(SUM($AM$13:AM17)<>0,0,IF(O18<0,B18-O17,0)) -> 0 | AN18: 0 | AR18: 13 | AT18: =IF(AQ18<>0,IF((AT17-B18)*(1+alloc1*Simulator!E18+alloc2*Simulator!F18+alloc3*Simulator!H18+alloc4*Simulator!J18+alloc5*Simulator!M18)<0,NA(),(AT17-B18)*(1+alloc1*Simulator!E18+alloc2*Simulator!F18+alloc3*Simulator!H18+alloc4*Simulator!J18+alloc5*Simulator!M18)),NA()) ->  | AV18: 1.919055956 | AW18: 0.1147597334 | AX18: 2.145304128 | AY18: 0.1356595171 | AZ18: 2.243337809 | BA18: 0.1441486329 | BB18: 2.485918721 | BC18: 0.1638968358
A19: 7 | B19: 19.04249188 | D19: 0.08 | E19: 0.08 | F19: 0.05571806878 | G19: 0.05571806878 | H19: 0.2227377136 | I19: 0.2227377136 | J19: 0.143715413 | K19: 0.143715413 | L19: 0.5898709849 | M19: 0.5898709849 | O19: -86 | P19: 13 | Q19: 37 | R19: 16 | S19: 29 | AD19: 7 | AL19: =(1+alloc1*Simulator!E19+alloc2*Simulator!F19+alloc3*Simulator!H19+alloc4*Simulator!J19+alloc5*Simulator!M19) -> 1.163477989 | AM19: =IF(SUM($AM$13:AM18)<>0,0,IF(O19<0,B19-O18,0)) -> 0 | AN19: 0 | AO19: Bucket 2 | AR19: 9 | AT19: =IF(AQ19<>0,IF((AT18-B19)*(1+alloc1*Simulator!E19+alloc2*Simulator!F19+alloc3*Simulator!H19+alloc4*Simulator!J19+alloc5*Simulator!M19)<0,NA(),(AT18-B19)*(1+alloc1*Simulator!E19+alloc2*Simulator!F19+alloc3*Simulator!H19+alloc4*Simulator!J19+alloc5*Simulator!M19)),NA()) ->  | AV19: 2.025982048 | AW19: 0.1061272326 | AX19: 2.623144264 | AY19: 0.1477088736 | AZ19: 2.565740029 | BA19: 0.1440867343 | BB19: 3.952290046 | BC19: 0.2169258472
A20: 8 | B20: 20.56589123 | D20: 0.08 | E20: 0.08 | F20: 0.1125332229 | G20: 0.1125332229 | H20: 0.1581984841 | I20: 0.1581984841 | J20: -0.1357771181 | K20: -0.1357771181 | L20: 0.2607356649 | M20: 0.2607356649 | O20: -115 | P20: 14 | Q20: 43 | R20: 14 | S20: 37 | AD20: 8 | AL20: =(1+alloc1*Simulator!E20+alloc2*Simulator!F20+alloc3*Simulator!H20+alloc4*Simulator!J20+alloc5*Simulator!M20) -> 1.095388874 | AM20: =IF(SUM($AM$13:AM19)<>0,0,IF(O20<0,B20-O19,0)) -> 0 | AN20: 0 | AO20: Bucket 3 | AR20: =IF(AQ20=SUM(AN7:AN1106),NA(),IF(AQ20<>0,IF(SUM(O20:S20)<0,NA(),SUM(O20:S20)),NA())) ->  | AT20: =IF(AQ20<>0,IF((AT19-B20)*(1+alloc1*Simulator!E20+alloc2*Simulator!F20+alloc3*Simulator!H20+alloc4*Simulator!J20+alloc5*Simulator!M20)<0,NA(),(AT19-B20)*(1+alloc1*Simulator!E20+alloc2*Simulator!F20+alloc3*Simulator!H20+alloc4*Simulator!J20+alloc5*Simulator!M20)),NA()) ->  | AV20: 2.253972338 | AW20: 0.1069259598 | AX20: 3.03812171 | AY20: 0.1490148617 | AZ20: 2.217371242 | BA20: 0.1046629835 | BB20: 4.982793019 | BC20: 0.2223177147
A21: 9 | B21: 22.21116252 | D21: 0.08 | E21: 0.08 | F21: 0.1448104108 | G21: 0.1448104108 | H21: 0.08923141716 | I21: 0.08923141716 | J21: 0.3450907555 | K21: 0.3450907555 | L21: -0.09526380165 | M21: -0.09526380165 | O21: -148 | P21: 16 | Q21: 47 | R21: 19 | S21: 33 | AD21: 9 | AL21: =(1+alloc1*Simulator!E21+alloc2*Simulator!F21+alloc3*Simulator!H21+alloc4*Simulator!J21+alloc5*Simulator!M21) -> 1.09731002 | AM21: =IF(SUM($AM$13:AM20)<>0,0,IF(O21<0,B21-O20,0)) -> 0 | AN21: 0 | AO21: Bucket 5 | AT21: =IF(AQ21<>0,IF((AT20-B21)*(1+alloc1*Simulator!E21+alloc2*Simulator!F21+alloc3*Simulator!H21+alloc4*Simulator!J21+alloc5*Simulator!M21)<0,NA(),(AT20-B21)*(1+alloc1*Simulator!E21+alloc2*Simulator!F21+alloc3*Simulator!H21+alloc4*Simulator!J21+alloc5*Simulator!M21)),NA()) ->  | AV21: 2.580370998 | AW21: 0.1110726606 | AX21: 3.309217616 | AY21: 0.1422134205 | AZ21: 2.982565559 | BA21: 0.1290995181 | BB21: 4.508113213 | BC21: 0.1821323177
A22: 10 | B22: 23.98805553 | D22: 0.08 | E22: 0.08 | F22: 0.07543317923 | G22: 0.07543317923 | H22: 0.02209808429 | I22: 0.02209808429 | J22: -0.07423730341 | K22: -0.07423730341 | L22: 0.1217357627 | M22: 0.1217357627 | O22: -164 | P22: 17 | Q22: 28 | R22: 18 | S22: 37 | AD22: 10 | AL22: =(1+alloc1*Simulator!E22+alloc2*Simulator!F22+alloc3*Simulator!H22+alloc4*Simulator!J22+alloc5*Simulator!M22) -> 1.056712781 | AM22: =IF(SUM($AM$13:AM21)<>0,0,IF(O22<0,B22-O21,0)) -> 0 | AN22: 0 | AT22: =IF(AQ22<>0,IF((AT21-B22)*(1+alloc1*Simulator!E22+alloc2*Simulator!F22+alloc3*Simulator!H22+alloc4*Simulator!J22+alloc5*Simulator!M22)<0,NA(),(AT21-B22)*(1+alloc1*Simulator!E22+alloc2*Simulator!F22+alloc3*Simulator!H22+alloc4*Simulator!J22+alloc5*Simulator!M22)),NA()) ->  | AV22: 2.775016586 | AW22: 0.1074561986 | AX22: 3.382344986 | AY22: 0.129592474 | AZ22: 2.761147935 | BA22: 0.1069014785 | BB22: 5.056911813 | BC22: 0.1759491378
A23: 11 | B23: 25.90709997 | D23: 0.08 | E23: 0.08 | F23: 0.1419839675 | G23: 0.1419839675 | H23: 0.01072151105 | I23: 0.01072151105 | J23: 0.1787829217 | K23: 0.1787829217 | L23: 0.6095934882 | M23: 0.6095934882 | O23: -205 | P23: 19 | Q23: 28 | R23: 21 | S23: 60 | AD23: 11 | AL23: =(1+alloc1*Simulator!E23+alloc2*Simulator!F23+alloc3*Simulator!H23+alloc4*Simulator!J23+alloc5*Simulator!M23) -> 1.13518034 | AM23: =IF(SUM($AM$13:AM22)<>0,0,IF(O23<0,B23-O22,0)) -> 0 | AN23: 0 | AT23: =IF(AQ23<>0,IF((AT22-B23)*(1+alloc1*Simulator!E23+alloc2*Simulator!F23+alloc3*Simulator!H23+alloc4*Simulator!J23+alloc5*Simulator!M23)<0,NA(),(AT22-B23)*(1+alloc1*Simulator!E23+alloc2*Simulator!F23+alloc3*Simulator!H23+alloc4*Simulator!J23+alloc5*Simulator!M23)),NA()) ->  | AV23: 3.16902445 | AW23: 0.1105514666 | AX23: 3.418608835 | AY23: 0.1182316098 | AZ23: 3.25479403 | BA23: 0.1132508783 | BB23: 8.139572325 | BC23: 0.2099905052
A24: 12 | B24: 27.97966796 | D24: 0.08 | E24: 0.08 | F24: 0.08662332619 | G24: 0.08662332619 | H24: 0.2621510603 | I24: 0.2621510603 | J24: 0.3324233703 | K24: 0.3324233703 | L24: 0.2808691954 | M24: 0.2808691954 | O24: -230 | P24: 21 | Q24: 35 | R24: 28 | S24: 51 | AD24: 12 | AL24: =(1+alloc1*Simulator!E24+alloc2*Simulator!F24+alloc3*Simulator!H24+alloc4*Simulator!J24+alloc5*Simulator!M24) -> 1.162421801 | AM24: =IF(SUM($AM$13:AM23)<>0,0,IF(O24<0,B24-O23,0)) -> 0 | AN24: 0 | AT24: =IF(AQ24<>0,IF((AT23-B24)*(1+alloc1*Simulator!E24+alloc2*Simulator!F24+alloc3*Simulator!H24+alloc4*Simulator!J24+alloc5*Simulator!M24)<0,NA(),(AT23-B24)*(1+alloc1*Simulator!E24+alloc2*Simulator!F24+alloc3*Simulator!H24+alloc4*Simulator!J24+alloc5*Simulator!M24)),NA()) ->  | AV24: 3.443535889 | AW24: 0.108537488 | AX24: 4.314800766 | AY24: 0.12957064 | AZ24: 4.336763631 | BA24: 0.1300486636 | BB24: 10.42572745 | BC24: 0.2157441747
A25: 13 | B25: 30.2180414 | D25: 0.08 | E25: 0.08 | F25: 0.09294256799 | G25: 0.09294256799 | H25: 0.03407948349 | I25: 0.03407948349 | J25: 0.1020088492 | K25: 0.1020088492 | L25: 0.1623736986 | M25: 0.1623736986 | O25: -281 | P25: 23 | Q25: 36 | R25: 31 | S25: 59 | AD25: 13 | AL25: =(1+alloc1*Simulator!E25+alloc2*Simulator!F25+alloc3*Simulator!H25+alloc4*Simulator!J25+alloc5*Simulator!M25) -> 1.082548408 | AM25: =IF(SUM($AM$13:AM24)<>0,0,IF(O25<0,B25-O24,0)) -> 0 | AN25: 0 | AT25: =IF(AQ25<>0,IF((AT24-B25)*(1+alloc1*Simulator!E25+alloc2*Simulator!F25+alloc3*Simulator!H25+alloc4*Simulator!J25+alloc5*Simulator!M25)<0,NA(),(AT24-B25)*(1+alloc1*Simulator!E25+alloc2*Simulator!F25+alloc3*Simulator!H25+alloc4*Simulator!J25+alloc5*Simulator!M25)),NA()) ->  | AV25: 3.763586957 | AW25: 0.1073300188 | AX25: 4.461846947 | AY25: 0.1219220066 | AZ25: 4.779151898 | BA25: 0.1278666534 | BB25: 12.11859138 | BC25: 0.2115531538
A26: 14 | B26: 32.63548471 | D26: 0.08 | E26: 0.08 | F26: 0.06114739952 | G26: 0.06114739952 | H26: 0.004640590647 | I26: 0.004640590647 | J26: 0.03749618115 | K26: 0.03749618115 | L26: -0.246672425 | M26: -0.246672425 | O26: -339 | P26: 24 | Q26: 36 | R26: 32 | S26: 44 | AD26: 14 | AL26: =(1+alloc1*Simulator!E26+alloc2*Simulator!F26+alloc3*Simulator!H26+alloc4*Simulator!J26+alloc5*Simulator!M26) -> 1.026125234 | AM26: =IF(SUM($AM$13:AM25)<>0,0,IF(O26<0,B26-O25,0)) -> 0 | AN26: 0 | AR26: =IF(AQ26=SUM(AN13:AN1112),NA(),IF(AQ26<>0,IF(SUM(O26:S26)<0,NA(),SUM(O26:S26)),NA())) ->  | AT26: =IF(AQ26<>0,IF((AT25-B26)*(1+alloc1*Simulator!E26+alloc2*Simulator!F26+alloc3*Simulator!H26+alloc4*Simulator!J26+alloc5*Simulator!M26)<0,NA(),(AT25-B26)*(1+alloc1*Simulator!E26+alloc2*Simulator!F26+alloc3*Simulator!H26+alloc4*Simulator!J26+alloc5*Simulator!M26)),NA()) ->  | AV26: 3.993720513 | AW26: 0.1039656177 | AX26: 4.482552553 | AY26: 0.1131085735 | AZ26: 4.958351843 | BA26: 0.1211583427 | BB26: 9.129269058 | BC26: 0.1711231662
A27: 15 | B27: 35.24632349 | D27: 0.08 | E27: 0.08 | F27: 0.08499886111 | G27: 0.08499886111 | H27: 0.19000905 | I27: 0.19000905 | J27: 0.141010124 | K27: 0.141010124 | L27: 0.3704786524 | M27: 0.3704786524 | O27: -383 | P27: 26 | Q27: 43 | R27: 25 | S27: 47 | AD27: 15 | AL27: =(1+alloc1*Simulator!E27+alloc2*Simulator!F27+alloc3*Simulator!H27+alloc4*Simulator!J27+alloc5*Simulator!M27) -> 1.137650574 | AM27: =IF(SUM($AM$13:AM26)<>0,0,IF(O27<0,B27-O26,0)) -> 0 | AN27: 0 | AT27: =IF(AQ27<>0,IF((AT26-B27)*(1+alloc1*Simulator!E27+alloc2*Simulator!F27+alloc3*Simulator!H27+alloc4*Simulator!J27+alloc5*Simulator!M27)<0,NA(),(AT26-B27)*(1+alloc1*Simulator!E27+alloc2*Simulator!F27+alloc3*Simulator!H27+alloc4*Simulator!J27+alloc5*Simulator!M27)),NA()) ->  | AV27: 4.333182208 | AW27: 0.1026909157 | AX27: 5.334278105 | AY27: 0.1180769912 | AZ27: 5.657529651 | BA27: 0.1224709823 | BB27: 12.51146836 | BC27: 0.1834608223
A28: 16 | B28: 38.06602937 | D28: 0.08 | E28: 0.08 | F28: 0.07476205383 | G28: 0.07476205383 | H28: 0.1929147467 | I28: 0.1929147467 | J28: 0.3136258119 | K28: 0.3136258119 | L28: -0.4271093915 | M28: -0.4271093915 | O28: -455 | P28: 28 | Q28: 51 | R28: 33 | S28: 27 | AD28: 16 | AL28: =(1+alloc1*Simulator!E28+alloc2*Simulator!F28+alloc3*Simulator!H28+alloc4*Simulator!J28+alloc5*Simulator!M28) -> 1.074710797 | AM28: =IF(SUM($AM$13:AM27)<>0,0,IF(O28<0,B28-O27,0)) -> 0 | AN28: 0 | AT28: =IF(AQ28<>0,IF((AT27-B28)*(1+alloc1*Simulator!E28+alloc2*Simulator!F28+alloc3*Simulator!H28+alloc4*Simulator!J28+alloc5*Simulator!M28)<0,NA(),(AT27-B28)*(1+alloc1*Simulator!E28+alloc2*Simulator!F28+alloc3*Simulator!H28+alloc4*Simulator!J28+alloc5*Simulator!M28)),NA()) ->  | AV28: 4.657139809 | AW28: 0.1009242924 | AX28: 6.363339014 | AY28: 0.1226136443 | AZ28: 7.431876981 | BA28: 0.133557767 | BB28: 7.16770272 | BC28: 0.130996469
A29: 17 | B29: 41.11131172 | D29: 0.08 | E29: 0.08 | F29: 0.09279612625 | G29: 0.09279612625 | H29: -0.08826482682 | I29: -0.08826482682 | J29: 0.2175405094 | K29: 0.2175405094 | L29: 0.1820558093 | M29: 0.1820558093 | O29: -514 | P29: 31 | Q29: 28 | R29: 40 | S29: 32 | AD29: 17 | AL29: =(1+alloc1*Simulator!E29+alloc2*Simulator!F29+alloc3*Simulator!H29+alloc4*Simulator!J29+alloc5*Simulator!M29) -> 1.071586279 | AM29: =IF(SUM($AM$13:AM28)<>0,0,IF(O29<0,B29-O28,0)) -> 0 | AN29: 0 | AT29: =IF(AQ29<>0,IF((AT28-B29)*(1+alloc1*Simulator!E29+alloc2*Simulator!F29+alloc3*Simulator!H29+alloc4*Simulator!J29+alloc5*Simulator!M29)<0,NA(),(AT28-B29)*(1+alloc1*Simulator!E29+alloc2*Simulator!F29+alloc3*Simulator!H29+alloc4*Simulator!J29+alloc5*Simulator!M29)),NA()) ->  | AV29: 5.089304343 | AW29: 0.1004444958 | AX29: 5.801679998 | AY29: 0.1089575645 | AZ29: 9.048611285 | BA29: 0.1383335223 | BB29: 8.472624639 | BC29: 0.1339379549
A30: 18 | B30: 44.40021666 | D30: 0.08 | E30: 0.08 | F30: 0.06398248629 | G30: 0.06398248629 | H30: 0.2952221437 | I30: 0.2952221437 | J30: 0.1243301787 | K30: 0.1243301787 | L30: 0.06086940233 | M30: 0.06086940233 | O30: -581 | P30: 33 | Q30: 36 | R30: 22 | S30: 34 | AD30: 18 | AL30: =(1+alloc1*Simulator!E30+alloc2*Simulator!F30+alloc3*Simulator!H30+alloc4*Simulator!J30+alloc5*Simulator!M30) -> 1.123962635 | AM30: =IF(SUM($AM$13:AM29)<>0,0,IF(O30<0,B30-O29,0)) -> 0 | AN30: 0 | AT30: =IF(AQ30<>0,IF((AT29-B30)*(1+alloc1*Simulator!E30+alloc2*Simulator!F30+alloc3*Simulator!H30+alloc4*Simulator!J30+alloc5*Simulator!M30)<0,NA(),(AT29-B30)*(1+alloc1*Simulator!E30+alloc2*Simulator!F30+alloc3*Simulator!H30+alloc4*Simulator!J30+alloc5*Simulator!M30)),NA()) ->  | AV30: 5.414930688 | AW30: 0.09838643618 | AX30: 7.514464404 | AY30: 0.1185644222 | AZ30: 10.17362674 | BA30: 0.1375510032 | BB30: 8.988348237 | BC30: 0.1297496517
A31: 19 | B31: 47.95223399 | D31: 0.08 | E31: 0.08 | F31: 0.08217874053 | G31: 0.08217874053 | H31: 0.1195914703 | I31: 0.1195914703 | J31: 0.170387202 | K31: 0.170387202 | L31: 0.607117777 | M31: 0.607117777 | O31: -679 | P31: 36 | Q31: 40 | R31: 26 | S31: 55 | AD31: 19 | AL31: =(1+alloc1*Simulator!E31+alloc2*Simulator!F31+alloc3*Simulator!H31+alloc4*Simulator!J31+alloc5*Simulator!M31) -> 1.149886666 | AM31: =IF(SUM($AM$13:AM30)<>0,0,IF(O31<0,B31-O30,0)) -> 0 | AN31: 0 | AT31: =IF(AQ31<>0,IF((AT30-B31)*(1+alloc1*Simulator!E31+alloc2*Simulator!F31+alloc3*Simulator!H31+alloc4*Simulator!J31+alloc5*Simulator!M31)<0,NA(),(AT30-B31)*(1+alloc1*Simulator!E31+alloc2*Simulator!F31+alloc3*Simulator!H31+alloc4*Simulator!J31+alloc5*Simulator!M31)),NA()) ->  | AV31: 5.859922872 | AW31: 0.09752737941 | AX31: 8.41313025 | AY31: 0.1186184539 | AZ31: 11.90708254 | BA31: 0.1392560274 | BB31: 14.44533424 | BC31: 0.1509018667
A32: 20 | B32: 51.78841271 | D32: 0.08 | E32: 0.08 | F32: 0.06473044501 | G32: 0.06473044501 | H32: 0.1529621334 | I32: 0.1529621334 | J32: 0.2272052101 | K32: 0.2272052101 | L32: 0.8454661187 | M32: 0.8454661187 | O32: -768 | P32: 38 | Q32: 46 | R32: 32 | S32: 65 | AD32: 20 | AL32: =(1+alloc1*Simulator!E32+alloc2*Simulator!F32+alloc3*Simulator!H32+alloc4*Simulator!J32+alloc5*Simulator!M32) -> 1.184332604 | AM32: =IF(SUM($AM$13:AM31)<>0,0,IF(O32<0,B32-O31,0)) -> 0 | AN32: 0 | AT32: =IF(AQ32<>0,IF((AT31-B32)*(1+alloc1*Simulator!E32+alloc2*Simulator!F32+alloc3*Simulator!H32+alloc4*Simulator!J32+alloc5*Simulator!M32)<0,NA(),(AT31-B32)*(1+alloc1*Simulator!E32+alloc2*Simulator!F32+alloc3*Simulator!H32+alloc4*Simulator!J32+alloc5*Simulator!M32)),NA()) ->  | AV32: 6.239238288 | AW32: 0.09586379403 | AX32: 9.700020601 | AY32: 0.1203110842 | AZ32: 14.61243373 | BA32: 0.1434998915 | BB32: 26.65837491 | BC32: 0.1783971502
A33: 21 | B33: 55.93148573 | D33: 0.08 | E33: 0.08 | F33: 0.07672896607 | G33: 0.07672896607 | H33: 0.209083946 | I33: 0.209083946 | J33: 0.3120146911 | K33: 0.3120146911 | L33: 0.1156503653 | M33: 0.1156503653 | O33: -868 | P33: 41 | Q33: 56 | R33: 42 | S33: 50 | AD33: 21 | AL33: =(1+alloc1*Simulator!E33+alloc2*Simulator!F33+alloc3*Simulator!H33+alloc4*Simulator!J33+alloc5*Simulator!M33) -> 1.132256191 | AM33: =IF(SUM($AM$13:AM32)<>0,0,IF(O33<0,B33-O32,0)) -> 0 | AN33: 0 | AT33: =IF(AQ33<>0,IF((AT32-B33)*(1+alloc1*Simulator!E33+alloc2*Simulator!F33+alloc3*Simulator!H33+alloc4*Simulator!J33+alloc5*Simulator!M33)<0,NA(),(AT32-B33)*(1+alloc1*Simulator!E33+alloc2*Simulator!F33+alloc3*Simulator!H33+alloc4*Simulator!J33+alloc5*Simulator!M33)),NA()) ->  | AV33: 6.71796859 | AW33: 0.09494494828 | AX33: 11.72813918 | AY33: 0.1243866278 | AZ33: 19.17172772 | BA33: 0.1510100277 | BB33: 29.74142571 | BC33: 0.1753307128
A34: 22 | B34: 60.40600458 | D34: 0.08 | E34: 0.08 | F34: 0.06582356545 | G34: 0.06582356545 | H34: 0.1358133803 | I34: 0.1358133803 | J34: 0.2528276832 | K34: 0.2528276832 | L34: 0.3060120034 | M34: 0.3060120034 | O34: -981 | P34: 44 | Q34: 41 | R34: 53 | S34: 65 | AD34: 22 | AL34: =(1+alloc1*Simulator!E34+alloc2*Simulator!F34+alloc3*Simulator!H34+alloc4*Simulator!J34+alloc5*Simulator!M34) -> 1.129629001 | AM34: =IF(SUM($AM$13:AM33)<>0,0,IF(O34<0,B34-O33,0)) -> 0 | AN34: 0 | AT34: =IF(AQ34<>0,IF((AT33-B34)*(1+alloc1*Simulator!E34+alloc2*Simulator!F34+alloc3*Simulator!H34+alloc4*Simulator!J34+alloc5*Simulator!M34)<0,NA(),(AT33-B34)*(1+alloc1*Simulator!E34+alloc2*Simulator!F34+alloc3*Simulator!H34+alloc4*Simulator!J34+alloc5*Simulator!M34)),NA()) ->  | AV34: 7.160169236 | AW34: 0.0936041495 | AX34: 13.32097741 | AY34: 0.124903523 | AZ34: 24.01887123 | BA34: 0.1554532823 | BB34: 38.84265897 | BC34: 0.1809766638
A35: 23 | B35: 65.23848495 | D35: 0.08 | E35: 0.08 | F35: 0.08554539991 | G35: 0.08554539991 | H35: -0.0007536804353 | I35: -0.0007536804353 | J35: 0.3837102173 | K35: 0.3837102173 | L35: 0.230228921 | M35: 0.230228921 | O35: -1098 | P35: 48 | Q35: 41 | R35: 73 | S35: 43 | AD35: 23 | AL35: =(1+alloc1*Simulator!E35+alloc2*Simulator!F35+alloc3*Simulator!H35+alloc4*Simulator!J35+alloc5*Simulator!M35) -> 1.109797718 | AM35: =IF(SUM($AM$13:AM34)<>0,0,IF(O35<0,B35-O34,0)) -> 0 | AN35: 0 | AT35: =IF(AQ35<>0,IF((AT34-B35)*(1+alloc1*Simulator!E35+alloc2*Simulator!F35+alloc3*Simulator!H35+alloc4*Simulator!J35+alloc5*Simulator!M35)<0,NA(),(AT34-B35)*(1+alloc1*Simulator!E35+alloc2*Simulator!F35+alloc3*Simulator!H35+alloc4*Simulator!J35+alloc5*Simulator!M35)),NA()) ->  | AV35: 7.772688776 | AW35: 0.09325252827 | AX35: 13.31093765 | AY35: 0.1191251016 | AZ35: 33.23515752 | BA35: 0.1645453981 | BB35: 47.78536243 | BC35: 0.1830764815
A36: 24 | B36: 70.45756375 | D36: 0.08 | E36: 0.08 | F36: 0.09649048915 | G36: 0.09649048915 | H36: 0.103575293 | I36: 0.103575293 | J36: 0.2534695521 | K36: 0.2534695521 | L36: 0.4806358561 | M36: 0.4806358561 | O36: -1262 | P36: 53 | Q36: 45 | R36: 92 | S36: 64 | AD36: 24 | AL36: =(1+alloc1*Simulator!E36+alloc2*Simulator!F36+alloc3*Simulator!H36+alloc4*Simulator!J36+alloc5*Simulator!M36) -> 1.143774648 | AM36: =IF(SUM($AM$13:AM35)<>0,0,IF(O36<0,B36-O35,0)) -> 0 | AN36: 0 | AT36: =IF(AQ36<>0,IF((AT35-B36)*(1+alloc1*Simulator!E36+alloc2*Simulator!F36+alloc3*Simulator!H36+alloc4*Simulator!J36+alloc5*Simulator!M36)<0,NA(),(AT35-B36)*(1+alloc1*Simulator!E36+alloc2*Simulator!F36+alloc3*Simulator!H36+alloc4*Simulator!J36+alloc5*Simulator!M36)),NA()) ->  | AV36: 8.522679318 | AW36: 0.09338725221 | AX36: 14.68962192 | AY36: 0.1184728397 | AZ36: 41.65925802 | BA36: 0.1681214004 | BB36: 70.75272101 | BC36: 0.1941878029
A37: 25 | B37: 76.09416885 | D37: 0.08 | E37: 0.08 | F37: 0.09453129608 | G37: 0.09453129608 | H37: 0.2493461943 | I37: 0.2493461943 | J37: 0.2640326224 | K37: 0.2640326224 | L37: 0.6516550825 | M37: 0.6516550825 | O37: -1413 | P37: 58 | Q37: 56 | R37: 78 | S37: 106 | AD37: 25 | AL37: =(1+alloc1*Simulator!E37+alloc2*Simulator!F37+alloc3*Simulator!H37+alloc4*Simulator!J37+alloc5*Simulator!M37) -> 1.190891139 | AM37: =IF(SUM($AM$13:AM36)<>0,0,IF(O37<0,B37-O36,0)) -> 0 | AN37: 0 | AT37: =IF(AQ37<>0,IF((AT36-B37)*(1+alloc1*Simulator!E37+alloc2*Simulator!F37+alloc3*Simulator!H37+alloc4*Simulator!J37+alloc5*Simulator!M37)<0,NA(),(AT36-B37)*(1+alloc1*Simulator!E37+alloc2*Simulator!F37+alloc3*Simulator!H37+alloc4*Simulator!J37+alloc5*Simulator!M37)),NA()) ->  | AV37: 9.32833924 | AW37: 0.093432991 | AX37: 18.35242324 | AY37: 0.1234344482 | AZ37: 52.65866116 | BA37: 0.1718142973 | BB37: 116.8590913 | BC37: 0.2097802777
A38: 26 | B38: 82.18170235 | D38: 0.08 | E38: 0.08 | F38: 0.09270024995 | G38: 0.09270024995 | H38: 0.01938773622 | I38: 0.01938773622 | J38: 0.004903969867 | K38: 0.004903969867 | L38: 0.1998869449 | M38: 0.1998869449 | O38: -1615 | P38: 63 | Q38: 57 | R38: 78 | S38: 127 | AD38: 26 | AL38: =(1+alloc1*Simulator!E38+alloc2*Simulator!F38+alloc3*Simulator!H38+alloc4*Simulator!J38+alloc5*Simulator!M38) -> 1.073626664 | AM38: =IF(SUM($AM$13:AM37)<>0,0,IF(O38<0,B38-O37,0)) -> 0 | AN38: 0 | AT38: =IF(AQ38<>0,IF((AT37-B38)*(1+alloc1*Simulator!E38+alloc2*Simulator!F38+alloc3*Simulator!H38+alloc4*Simulator!J38+alloc5*Simulator!M38)<0,NA(),(AT37-B38)*(1+alloc1*Simulator!E38+alloc2*Simulator!F38+alloc3*Simulator!H38+alloc4*Simulator!J38+alloc5*Simulator!M38)),NA()) ->  | AV38: 10.19307862 | AW38: 0.09340479957 | AX38: 18.70823518 | AY38: 0.1192428773 | AZ38: 52.91689765 | BA38: 0.1649092434 | BB38: 140.217698 | BC38: 0.2093982608
A39: 27 | B39: 88.75623854 | D39: 0.08 | E39: 0.08 | F39: 0.1162581027 | G39: 0.1162581027 | H39: 0.04103109644 | I39: 0.04103109644 | J39: 0.08511444409 | K39: 0.08511444409 | L39: 0.1761693136 | M39: 0.1761693136 | O39: -1840 | P39: 70 | Q39: 59 | R39: 85 | S39: 149 | AD39: 27 | AL39: =(1+alloc1*Simulator!E39+alloc2*Simulator!F39+alloc3*Simulator!H39+alloc4*Simulator!J39+alloc5*Simulator!M39) -> 1.085960405 | AM39: =IF(SUM($AM$13:AM38)<>0,0,IF(O39<0,B39-O38,0)) -> 0 | AN39: 0 | AT39: =IF(AQ39<>0,IF((AT38-B39)*(1+alloc1*Simulator!E39+alloc2*Simulator!F39+alloc3*Simulator!H39+alloc4*Simulator!J39+alloc5*Simulator!M39)<0,NA(),(AT38-B39)*(1+alloc1*Simulator!E39+alloc2*Simulator!F39+alloc3*Simulator!H39+alloc4*Simulator!J39+alloc5*Simulator!M39)),NA()) ->  | AV39: 11.3781066 | AX39: 19.47585458 | AZ39: 57.42088997 | BB39: 164.9197536
A40: 28 | B40: 95.85673763 | D40: 0.08 | E40: 0.08 | F40: 0.07734936788 | G40: 0.07734936788 | H40: 0.2510660057 | I40: 0.2510660057 | J40: 0.1756594746 | K40: 0.1756594746 | L40: 0.3129590868 | M40: 0.3129590868 | O40: -2091 | P40: 75 | Q40: 74 | R40: 100 | S40: 196 | AD40: 28 | AL40: =(1+alloc1*Simulator!E40+alloc2*Simulator!F40+alloc3*Simulator!H40+alloc4*Simulator!J40+alloc5*Simulator!M40) -> 1.146809994 | AM40: =IF(SUM($AM$13:AM39)<>0,0,IF(O40<0,B40-O39,0)) -> 0 | AN40: 0 | AT40: =IF(AQ40<>0,IF((AT39-B40)*(1+alloc1*Simulator!E40+alloc2*Simulator!F40+alloc3*Simulator!H40+alloc4*Simulator!J40+alloc5*Simulator!M40)<0,NA(),(AT39-B40)*(1+alloc1*Simulator!E40+alloc2*Simulator!F40+alloc3*Simulator!H40+alloc4*Simulator!J40+alloc5*Simulator!M40)),NA()) ->  | AV40: 12.25819595 | AW40: =(AV40/$AV$12)^(1/AQ40)-1 ->  | AX40: 24.3655796 | AY40: =(AX40/$AX$12)^(1/AQ40)-1 ->  | AZ40: 67.50741334 | BA40: =(AZ40/$AZ$12)^(1/AQ40)-1 ->  | BB40: 216.5328891 | BC40: =(BB40/$BB$12)^(1/AQ40)-1 -> 
A41: 29 | B41: 103.5252766 | D41: 0.08 | E41: 0.08 | F41: 0.1043664294 | G41: 0.1043664294 | H41: -0.02483044221 | I41: -0.02483044221 | J41: 0.05689647107 | K41: 0.05689647107 | L41: 0.2391038318 | M41: 0.2391038318 | O41: -2370 | P41: 83 | Q41: 72 | R41: 106 | S41: 243 | AD41: 29 | AL41: =(1+alloc1*Simulator!E41+alloc2*Simulator!F41+alloc3*Simulator!H41+alloc4*Simulator!J41+alloc5*Simulator!M41) -> 1.075070585 | AM41: =IF(SUM($AM$13:AM40)<>0,0,IF(O41<0,B41-O40,0)) -> 0 | AN41: 0 | AT41: =IF(AQ41<>0,IF((AT40-B41)*(1+alloc1*Simulator!E41+alloc2*Simulator!F41+alloc3*Simulator!H41+alloc4*Simulator!J41+alloc5*Simulator!M41)<0,NA(),(AT40-B41)*(1+alloc1*Simulator!E41+alloc2*Simulator!F41+alloc3*Simulator!H41+alloc4*Simulator!J41+alloc5*Simulator!M41)),NA()) ->  | AV41: 13.5375401 | AX41: 23.76057148 | AZ41: 71.34834693 | BB41: 268.3067326
A42: 30 | B42: 111.8072988 | D42: 0.08 | E42: 0.08 | F42: 0.08539807155 | G42: 0.08539807155 | H42: 0.03624019686 | I42: 0.03624019686 | J42: 0.2181731382 | K42: 0.2181731382 | L42: 0.2143788071 | M42: 0.2143788071 | O42: -2680 | P42: 90 | Q42: 75 | R42: 129 | S42: 295 | AD42: 30 | AL42: =(1+alloc1*Simulator!E42+alloc2*Simulator!F42+alloc3*Simulator!H42+alloc4*Simulator!J42+alloc5*Simulator!M42) -> 1.099043041 | AM42: =IF(SUM($AM$13:AM41)<>0,0,IF(O42<0,B42-O41,0)) -> 0 | AN42: 0 | AT42: =IF(AQ42<>0,IF((AT41-B42)*(1+alloc1*Simulator!E42+alloc2*Simulator!F42+alloc3*Simulator!H42+alloc4*Simulator!J42+alloc5*Simulator!M42)<0,NA(),(AT41-B42)*(1+alloc1*Simulator!E42+alloc2*Simulator!F42+alloc3*Simulator!H42+alloc4*Simulator!J42+alloc5*Simulator!M42)),NA()) ->  | AV42: 14.69361991 | AX42: 24.62165927 | AZ42: 86.91463969 | BB42: 325.8260098
A43: 31 | B43: 120.7518827 | D43: 0.08 | E43: 0.08 | F43: 0.1295900155 | G43: 0.1295900155 | H43: 0.06290928281 | I43: 0.06290928281 | J43: 0.1796222978 | K43: 0.1796222978 | L43: 0.602718957 | M43: 0.602718957 | O43: -3025 | P43: 102 | Q43: 80 | R43: 152 | S43: 473 | AD43: 31 | AL43: =(1+alloc1*Simulator!E43+alloc2*Simulator!F43+alloc3*Simulator!H43+alloc4*Simulator!J43+alloc5*Simulator!M43) -> 1.143774984 | AM43: =IF(SUM($AM$13:AM42)<>0,0,IF(O43<0,B43-O42,0)) -> 0 | AN43: 0 | AT43: =IF(AQ43<>0,IF((AT42-B43)*(1+alloc1*Simulator!E43+alloc2*Simulator!F43+alloc3*Simulator!H43+alloc4*Simulator!J43+alloc5*Simulator!M43)<0,NA(),(AT42-B43)*(1+alloc1*Simulator!E43+alloc2*Simulator!F43+alloc3*Simulator!H43+alloc4*Simulator!J43+alloc5*Simulator!M43)),NA()) ->  | AV43: 16.59776635 | AX43: 26.1705902 | AZ43: 102.526447 | BB43: 522.2075227
A44: 32 | B44: 130.4120333 | D44: 0.08 | E44: 0.08 | F44: 0.1174664223 | G44: 0.1174664223 | H44: -0.1355574085 | I44: -0.1355574085 | J44: 0.05186904637 | K44: 0.05186904637 | L44: 0.5557249312 | M44: 0.5557249312 | O44: -3408 | P44: 114 | Q44: 69 | R44: 160 | S44: 736 | AD44: 32 | AL44: =(1+alloc1*Simulator!E44+alloc2*Simulator!F44+alloc3*Simulator!H44+alloc4*Simulator!J44+alloc5*Simulator!M44) -> 1.085394558 | AM44: =IF(SUM($AM$13:AM43)<>0,0,IF(O44<0,B44-O43,0)) -> 0 | AN44: 0 | AT44: =IF(AQ44<>0,IF((AT43-B44)*(1+alloc1*Simulator!E44+alloc2*Simulator!F44+alloc3*Simulator!H44+alloc4*Simulator!J44+alloc5*Simulator!M44)<0,NA(),(AT43-B44)*(1+alloc1*Simulator!E44+alloc2*Simulator!F44+alloc3*Simulator!H44+alloc4*Simulator!J44+alloc5*Simulator!M44)),NA()) ->  | AV44: 18.54744658 | AX44: 22.62297281 | AZ44: 107.844396 | BB44: 812.4112623
A45: 33 | B45: =(prepen1*(1+rinf)^(A45-1)/100000)-(pension/100000)-(income*(1+incrate)^(A45-1)/100000) -> 140.8449959 | D45: =IF(E45<>"",E45,_min1) -> 0.08 | E45: 0.08 | F45: 0.02439001507 | G45: =IF(F45<>"",F45,NORMINV(RAND(),mean2,stdev2)) -> 0.02439001507 | H45: 0.2117324584 | I45: =IF(H45<>"",H45,NORMINV(RAND(),mean3,stdev3)) -> 0.2117324584 | J45: -0.06588980483 | K45: =IF(J45<>"",J45,NORMINV(RAND(),mean4,stdev4)) -> -0.06588980483 | L45: =IF(M45<>"",M45,NORMINV(RAND(),mean5,stdev5)) -> 0.2866355053 | M45: 0.2866355053 | O45: -3833 | P45: =ROUND((P44-U44-V44+IF(trans3="bucket 2",X44)+IF(trans4="bucket 2",Z44)+IF(trans5="bucket 2",AB44))*(1+F45),0) -> 117 | Q45: =ROUND((Q44-W44-X44+IF(trans2="bucket 3",V44)+IF(trans4="bucket 3",Z44)+IF(trans5="bucket 3",AB44))*(1+H45),0) -> 84 | R45: =ROUND((R44-Y44-Z44+IF(trans2="bucket 4",V44)+IF(trans3="bucket 4",X44)+IF(trans5="bucket 4",AB44))*(1+J45),0) -> 149 | S45: =ROUND((S44-AA44-AB44+IF(trans2="bucket 5",V44)+IF(trans3="bucket 5",X44)+IF(trans4="bucket 5",Z44))*(1+M45),0) -> 947 | AD45: 33 | AL45: =(1+alloc1*Simulator!E45+alloc2*Simulator!F45+alloc3*Simulator!H45+alloc4*Simulator!J45+alloc5*Simulator!M45) -> 1.106860063 | AM45: =IF(SUM($AM$13:AM44)<>0,0,IF(O45<0,B45-O44,0)) -> 0 | AN45: 0 | AS45: =IF(AQ45<>0,IF(AS44- B45<0,NA(),(AS44-B45)*(1+retroi)),NA()) ->  | AT45: =IF(AQ45<>0,IF((AT44-B45)*(1+alloc1*Simulator!E45+alloc2*Simulator!F45+alloc3*Simulator!H45+alloc4*Simulator!J45+alloc5*Simulator!M45)<0,NA(),(AT44-B45)*(1+alloc1*Simulator!E45+alloc2*Simulator!F45+alloc3*Simulator!H45+alloc4*Simulator!J45+alloc5*Simulator!M45)),NA()) ->  | AU45: =IF(AQ45<>0,IF(AU44-B45<0,NA(),(AU44-B45)*(1+retroi)),NA()) ->  | AV45: 18.99981908 | AX45: 27.41299046 | AZ45: 100.7385498 | BB45: 1045.277175
A46: 34 | B46: 152.1125956 | D46: 0.08 | E46: 0.08 | F46: 0.05373395472 | G46: 0.05373395472 | H46: -0.04373895308 | I46: -0.04373895308 | J46: -0.1395367193 | K46: -0.1395367193 | L46: -0.1055137358 | M46: -0.1055137358 | O46: -4304 | P46: 123 | Q46: 80 | R46: 128 | S46: 847 | AD46: 34 | AL46: =(1+alloc1*Simulator!E46+alloc2*Simulator!F46+alloc3*Simulator!H46+alloc4*Simulator!J46+alloc5*Simulator!M46) -> 1.012120559 | AM46: =IF(SUM($AM$13:AM45)<>0,0,IF(O46<0,B46-O45,0)) -> 0 | AN46: 0 | AT46: =IF(AQ46<>0,IF((AT45-B46)*(1+alloc1*Simulator!E46+alloc2*Simulator!F46+alloc3*Simulator!H46+alloc4*Simulator!J46+alloc5*Simulator!M46)<0,NA(),(AT45-B46)*(1+alloc1*Simulator!E46+alloc2*Simulator!F46+alloc3*Simulator!H46+alloc4*Simulator!J46+alloc5*Simulator!M46)),NA()) ->  | AV46: 20.0207545 | AX46: 26.21397496 | AZ46: 86.68182306 | BB46: 934.9860753
A47: 35 | B47: 164.2816033 | D47: 0.08 | E47: 0.08 | F47: 0.11606026 | G47: 0.11606026 | H47: 0.08042763963 | I47: 0.08042763963 | J47: 0.04840367356 | K47: 0.04840367356 | L47: 0.02840271622 | M47: 0.02840271622 | O47: -4826 | P47: 137 | Q47: 86 | R47: 134 | S47: 871 | AD47: 35 | AL47: =(1+alloc1*Simulator!E47+alloc2*Simulator!F47+alloc3*Simulator!H47+alloc4*Simulator!J47+alloc5*Simulator!M47) -> 1.075372193 | AM47: =IF(SUM($AM$13:AM46)<>0,0,IF(O47<0,B47-O46,0)) -> 0 | AN47: 0 | AT47: =IF(AQ47<>0,IF((AT46-B47)*(1+alloc1*Simulator!E47+alloc2*Simulator!F47+alloc3*Simulator!H47+alloc4*Simulator!J47+alloc5*Simulator!M47)<0,NA(),(AT46-B47)*(1+alloc1*Simulator!E47+alloc2*Simulator!F47+alloc3*Simulator!H47+alloc4*Simulator!J47+alloc5*Simulator!M47)),NA()) ->  | AV47: 22.34436847 | AX47: 28.32230309 | AZ47: 90.87754173 | BB47: 961.5422195
A48: 36 | B48: 177.4241315 | D48: 0.08 | E48: 0.08 | F48: 0.09605397933 | G48: 0.09605397933 | H48: -0.04447344684 | I48: -0.04447344684 | J48: 0.2190801814 | K48: 0.2190801814 | L48: 0.2575237578 | M48: 0.2575237578 | O48: -5404 | P48: 150 | Q48: 82 | R48: 163 | S48: 1095 | AD48: 36 | AL48: =(1+alloc1*Simulator!E48+alloc2*Simulator!F48+alloc3*Simulator!H48+alloc4*Simulator!J48+alloc5*Simulator!M48) -> 1.088371102 | AM48: =IF(SUM($AM$13:AM47)<>0,0,IF(O48<0,B48-O47,0)) -> 0 | AN48: 0 | AT48: =IF(AQ48<>0,IF((AT47-B48)*(1+alloc1*Simulator!E48+alloc2*Simulator!F48+alloc3*Simulator!H48+alloc4*Simulator!J48+alloc5*Simulator!M48)<0,NA(),(AT47-B48)*(1+alloc1*Simulator!E48+alloc2*Simulator!F48+alloc3*Simulator!H48+alloc4*Simulator!J48+alloc5*Simulator!M48)),NA()) ->  | AV48: 24.49063398 | AW48: =(AV48/$AV$12)^(1/AQ48)-1 ->  | AX48: 27.06271265 | AY48: =(AX48/$AX$12)^(1/AQ48)-1 ->  | AZ48: 110.7870101 | BA48: =(AZ48/$AZ$12)^(1/AQ48)-1 ->  | BB48: 1209.162185 | BC48: =(BB48/$BB$12)^(1/AQ48)-1 -> 
A49: 37 | B49: 191.6180621 | D49: 0.08 | E49: 0.08 | F49: 0.1038450993 | G49: 0.1038450993 | H49: 0.04389971417 | I49: 0.04389971417 | J49: -0.0337850404 | K49: -0.0337850404 | L49: -0.06246612804 | M49: -0.06246612804 | O49: -6043 | P49: 166 | Q49: 86 | R49: 157 | S49: 1027 | AD49: 37 | AL49: =(1+alloc1*Simulator!E49+alloc2*Simulator!F49+alloc3*Simulator!H49+alloc4*Simulator!J49+alloc5*Simulator!M49) -> 1.049539336 | AM49: =IF(SUM($AM$13:AM48)<>0,0,IF(O49<0,B49-O48,0)) -> 0 | AN49: 0 | AT49: =IF(AQ49<>0,IF((AT48-B49)*(1+alloc1*Simulator!E49+alloc2*Simulator!F49+alloc3*Simulator!H49+alloc4*Simulator!J49+alloc5*Simulator!M49)<0,NA(),(AT48-B49)*(1+alloc1*Simulator!E49+alloc2*Simulator!F49+alloc3*Simulator!H49+alloc4*Simulator!J49+alloc5*Simulator!M49)),NA()) ->  | AV49: 27.03386629 | AX49: 28.250758 | AZ49: 107.0440664 | BB49: 1133.630505
A50: 38 | B50: 206.947507 | D50: 0.08 | E50: 0.08 | F50: 0.07646026232 | G50: 0.07646026232 | H50: -0.05823261905 | I50: -0.05823261905 | J50: 0.1066245453 | K50: 0.1066245453 | L50: 0.5207995296 | M50: 0.5207995296 | O50: -6750 | P50: 179 | Q50: 81 | R50: 174 | S50: 1562 | AD50: 38 | AL50: =(1+alloc1*Simulator!E50+alloc2*Simulator!F50+alloc3*Simulator!H50+alloc4*Simulator!J50+alloc5*Simulator!M50) -> 1.09874191 | AM50: =IF(SUM($AM$13:AM49)<>0,0,IF(O50<0,B50-O49,0)) -> 0 | AN50: 0 | AT50: =IF(AQ50<>0,IF((AT49-B50)*(1+alloc1*Simulator!E50+alloc2*Simulator!F50+alloc3*Simulator!H50+alloc4*Simulator!J50+alloc5*Simulator!M50)<0,NA(),(AT49-B50)*(1+alloc1*Simulator!E50+alloc2*Simulator!F50+alloc3*Simulator!H50+alloc4*Simulator!J50+alloc5*Simulator!M50)),NA()) ->  | AV50: 29.1008828 | AX50: 26.60564237 | AZ50: 118.4575914 | BB50: 1724.024739
A51: 39 | B51: 223.5033076 | D51: 0.08 | E51: 0.08 | F51: 0.06096773201 | G51: 0.06096773201 | H51: -0.05772675909 | I51: -0.05772675909 | J51: 0.03240187711 | K51: 0.03240187711 | L51: 0.2804916664 | M51: 0.2804916664 | O51: -7531 | P51: 190 | Q51: 76 | R51: 180 | S51: 2000 | AD51: 39 | AL51: =(1+alloc1*Simulator!E51+alloc2*Simulator!F51+alloc3*Simulator!H51+alloc4*Simulator!J51+alloc5*Simulator!M51) -> 1.065840776 | AM51: =IF(SUM($AM$13:AM50)<>0,0,IF(O51<0,B51-O50,0)) -> 0 | AN51: 0 | AT51: =IF(AQ51<>0,IF((AT50-B51)*(1+alloc1*Simulator!E51+alloc2*Simulator!F51+alloc3*Simulator!H51+alloc4*Simulator!J51+alloc5*Simulator!M51)<0,NA(),(AT50-B51)*(1+alloc1*Simulator!E51+alloc2*Simulator!F51+alloc3*Simulator!H51+alloc4*Simulator!J51+alloc5*Simulator!M51)),NA()) ->  | AV51: 30.87509763 | AX51: 25.06978486 | AZ51: 122.2958397 | BB51: 2207.599311
A52: 40 | B52: 241.3835722 | D52: 0.08 | E52: 0.08 | F52: 0.07449917277 | G52: 0.07449917277 | H52: 0.1586030275 | I52: 0.1586030275 | J52: 0.2006530349 | K52: 0.2006530349 | L52: 0.1355524222 | M52: 0.1355524222 | O52: -8394 | P52: 204 | Q52: 88 | R52: 216 | S52: 2271 | AD52: 40 | AL52: =(1+alloc1*Simulator!E52+alloc2*Simulator!F52+alloc3*Simulator!H52+alloc4*Simulator!J52+alloc5*Simulator!M52) -> 1.112791068 | AM52: =IF(SUM($AM$13:AM51)<>0,0,IF(O52<0,B52-O51,0)) -> 0 | AN52: 0 | AT52: =IF(AQ52<>0,IF((AT51-B52)*(1+alloc1*Simulator!E52+alloc2*Simulator!F52+alloc3*Simulator!H52+alloc4*Simulator!J52+alloc5*Simulator!M52)<0,NA(),(AT51-B52)*(1+alloc1*Simulator!E52+alloc2*Simulator!F52+alloc3*Simulator!H52+alloc4*Simulator!J52+alloc5*Simulator!M52)),NA()) ->  | AV52: 33.17526686 | AX52: 29.04592864 | AZ52: 146.8348711 | BB52: 2506.844745
A53: 41 | B53: 260.694258 | D53: 0.08 | E53: 0.08 | F53: 0.05966106164 | G53: 0.05966106164 | H53: 0.02670263349 | I53: 0.02670263349 | J53: 0.003717155745 | K53: 0.003717155745 | L53: 0.2180813502 | M53: 0.2180813502 | O53: -9347 | P53: 216 | Q53: 90 | R53: 217 | S53: 2766 | AD53: 41 | AL53: =(1+alloc1*Simulator!E53+alloc2*Simulator!F53+alloc3*Simulator!H53+alloc4*Simulator!J53+alloc5*Simulator!M53) -> 1.073486483 | AM53: =IF(SUM($AM$13:AM52)<>0,0,IF(O53<0,B53-O52,0)) -> 0 | AN53: 0 | AT53: =IF(AQ53<>0,IF((AT52-B53)*(1+alloc1*Simulator!E53+alloc2*Simulator!F53+alloc3*Simulator!H53+alloc4*Simulator!J53+alloc5*Simulator!M53)<0,NA(),(AT52-B53)*(1+alloc1*Simulator!E53+alloc2*Simulator!F53+alloc3*Simulator!H53+alloc4*Simulator!J53+alloc5*Simulator!M53)),NA()) ->  | AV53: 35.1545385 | AX53: 29.82153143 | AZ53: 147.3806791 | BB53: 3053.540832
A54: 42 | B54: 281.5497986 | D54: 0.08 | E54: 0.08 | F54: 0.1127505438 | G54: 0.1127505438 | H54: 0.03407684452 | I54: 0.03407684452 | J54: 0.2260512761 | K54: 0.2260512761 | L54: 0.4056348702 | M54: 0.4056348702 | O54: -10399 | P54: 240 | Q54: 93 | R54: 266 | S54: 3888 | AD54: 42 | AL54: =(1+alloc1*Simulator!E54+alloc2*Simulator!F54+alloc3*Simulator!H54+alloc4*Simulator!J54+alloc5*Simulator!M54) -> 1.121259038 | AM54: =IF(SUM($AM$13:AM53)<>0,0,IF(O54<0,B54-O53,0)) -> 0 | AN54: 0 | AT54: =IF(AQ54<>0,IF((AT53-B54)*(1+alloc1*Simulator!E54+alloc2*Simulator!F54+alloc3*Simulator!H54+alloc4*Simulator!J54+alloc5*Simulator!M54)<0,NA(),(AT53-B54)*(1+alloc1*Simulator!E54+alloc2*Simulator!F54+alloc3*Simulator!H54+alloc4*Simulator!J54+alloc5*Simulator!M54)),NA()) ->  | AV54: 39.11823183 | AX54: 30.83775512 | AZ54: 180.6962697 | BB54: 4292.163471
A55: 43 | B55: 304.0737825 | D55: 0.08 | E55: 0.08 | F55: 0.06080786967 | G55: 0.06080786967 | H55: 0.0458204743 | I55: 0.0458204743 | J55: 0.03674987152 | K55: 0.03674987152 | L55: 0.250118747 | M55: 0.250118747 | O55: -11559 | P55: 255 | Q55: 97 | R55: 276 | S55: 4860 | AD55: 43 | AL55: =(1+alloc1*Simulator!E55+alloc2*Simulator!F55+alloc3*Simulator!H55+alloc4*Simulator!J55+alloc5*Simulator!M55) -> 1.083931744 | AM55: =IF(SUM($AM$13:AM54)<>0,0,IF(O55<0,B55-O54,0)) -> 0 | AN55: 0 | AT55: =IF(AQ55<>0,IF((AT54-B55)*(1+alloc1*Simulator!E55+alloc2*Simulator!F55+alloc3*Simulator!H55+alloc4*Simulator!J55+alloc5*Simulator!M55)<0,NA(),(AT54-B55)*(1+alloc1*Simulator!E55+alloc2*Simulator!F55+alloc3*Simulator!H55+alloc4*Simulator!J55+alloc5*Simulator!M55)),NA()) ->  | AV55: 41.49692818 | AX55: 32.25075569 | AZ55: 187.3368344 | BB55: 5365.71402
A56: 44 | B56: 328.3996851 | D56: 0.08 | E56: 0.08 | F56: 0.0817147033 | G56: 0.0817147033 | H56: 0.06648955231 | I56: 0.06648955231 | J56: 0.03269297161 | K56: 0.03269297161 | L56: 0.3628421795 | M56: 0.3628421795 | O56: -12838 | P56: 276 | Q56: 103 | R56: 285 | S56: 6623 | AD56: 44 | AL56: =(1+alloc1*Simulator!E56+alloc2*Simulator!F56+alloc3*Simulator!H56+alloc4*Simulator!J56+alloc5*Simulator!M56) -> 1.101022896 | AM56: =IF(SUM($AM$13:AM55)<>0,0,IF(O56<0,B56-O55,0)) -> 0 | AN56: 0 | AT56: =IF(AQ56<>0,IF((AT55-B56)*(1+alloc1*Simulator!E56+alloc2*Simulator!F56+alloc3*Simulator!H56+alloc4*Simulator!J56+alloc5*Simulator!M56)<0,NA(),(AT55-B56)*(1+alloc1*Simulator!E56+alloc2*Simulator!F56+alloc3*Simulator!H56+alloc4*Simulator!J56+alloc5*Simulator!M56)),NA()) ->  | AV56: 44.88783735 | AX56: 34.39509399 | AZ56: 193.4614323 | BB56: 7312.62139
A57: 45 | B57: 354.6716599 | D57: 0.08 | E57: 0.08 | F57: 0.121296026 | G57: 0.121296026 | H57: 0.1872977931 | I57: 0.1872977931 | J57: -0.187086963 | K57: -0.187086963 | L57: 0.321976467 | M57: 0.321976467 | O57: -14248 | P57: 309 | Q57: 122 | R57: 232 | S57: 8755 | AD57: 45 | AL57: =(1+alloc1*Simulator!E57+alloc2*Simulator!F57+alloc3*Simulator!H57+alloc4*Simulator!J57+alloc5*Simulator!M57) -> 1.103078112 | AM57: =IF(SUM($AM$13:AM56)<>0,0,IF(O57<0,B57-O56,0)) -> 0 | AN57: 0 | AT57: =IF(AQ57<>0,IF((AT56-B57)*(1+alloc1*Simulator!E57+alloc2*Simulator!F57+alloc3*Simulator!H57+alloc4*Simulator!J57+alloc5*Simulator!M57)<0,NA(),(AT56-B57)*(1+alloc1*Simulator!E57+alloc2*Simulator!F57+alloc3*Simulator!H57+alloc4*Simulator!J57+alloc5*Simulator!M57)),NA()) ->  | AV57: 50.33255363 | AX57: 40.83721919 | AZ57: 157.2673204 | BB57: 9667.113389
A58: 46 | B58: 383.0453927 | D58: 0.08 | E58: 0.08 | F58: 0.047861755 | G58: 0.047861755 | H58: 0.2515501214 | I58: 0.2515501214 | J58: 0.4146831698 | K58: 0.4146831698 | L58: 0.1146309783 | M58: 0.1146309783 | O58: -15802 | P58: 324 | Q58: 153 | R58: 328 | S58: 9759 | AD58: 46 | AL58: =(1+alloc1*Simulator!E58+alloc2*Simulator!F58+alloc3*Simulator!H58+alloc4*Simulator!J58+alloc5*Simulator!M58) -> 1.148027615 | AM58: =IF(SUM($AM$13:AM57)<>0,0,IF(O58<0,B58-O57,0)) -> 0 | AN58: 0 | AT58: =IF(AQ58<>0,IF((AT57-B58)*(1+alloc1*Simulator!E58+alloc2*Simulator!F58+alloc3*Simulator!H58+alloc4*Simulator!J58+alloc5*Simulator!M58)<0,NA(),(AT57-B58)*(1+alloc1*Simulator!E58+alloc2*Simulator!F58+alloc3*Simulator!H58+alloc4*Simulator!J58+alloc5*Simulator!M58)),NA()) ->  | AV58: 52.74155799 | AX58: 51.10982664 | AZ58: 222.4834314 | BB58: 10775.26405
A59: 47 | B59: 413.6890241 | D59: 0.08 | E59: 0.08 | F59: 0.07668904646 | G59: 0.07668904646 | H59: 0.1528315415 | I59: 0.1528315415 | J59: 0.1753200131 | K59: 0.1753200131 | L59: 0.329909892 | M59: 0.329909892 | O59: -17513 | P59: 349 | Q59: 176 | R59: 386 | S59: 12979 | AD59: 47 | AL59: =(1+alloc1*Simulator!E59+alloc2*Simulator!F59+alloc3*Simulator!H59+alloc4*Simulator!J59+alloc5*Simulator!M59) -> 1.128758203 | AM59: =IF(SUM($AM$13:AM58)<>0,0,IF(O59<0,B59-O58,0)) -> 0 | AN59: 0 | AT59: =IF(AQ59<>0,IF((AT58-B59)*(1+alloc1*Simulator!E59+alloc2*Simulator!F59+alloc3*Simulator!H59+alloc4*Simulator!J59+alloc5*Simulator!M59)<0,NA(),(AT58-B59)*(1+alloc1*Simulator!E59+alloc2*Simulator!F59+alloc3*Simulator!H59+alloc4*Simulator!J59+alloc5*Simulator!M59)),NA()) ->  | AV59: 56.78625778 | AX59: 58.92102022 | AZ59: 261.4892295 | BB59: 14330.13025
A60: 48 | B60: 446.784146 | D60: 0.08 | E60: 0.08 | F60: 0.1122661413 | G60: 0.1122661413 | H60: 0.02974514121 | I60: 0.02974514121 | J60: -0.08592135078 | K60: -0.08592135078 | L60: 0.1497453183 | M60: 0.1497453183 | O60: -19397 | P60: 388 | Q60: 181 | R60: 353 | S60: 14923 | AD60: 48 | AL60: =(1+alloc1*Simulator!E60+alloc2*Simulator!F60+alloc3*Simulator!H60+alloc4*Simulator!J60+alloc5*Simulator!M60) -> 1.063558039 | AM60: =IF(SUM($AM$13:AM59)<>0,0,IF(O60<0,B60-O59,0)) -> 0 | AN60: 0 | AT60: =IF(AQ60<>0,IF((AT59-B60)*(1+alloc1*Simulator!E60+alloc2*Simulator!F60+alloc3*Simulator!H60+alloc4*Simulator!J60+alloc5*Simulator!M60)<0,NA(),(AT59-B60)*(1+alloc1*Simulator!E60+alloc2*Simulator!F60+alloc3*Simulator!H60+alloc4*Simulator!J60+alloc5*Simulator!M60)),NA()) ->  | AV60: 63.16143182 | AX60: 60.67363429 | AZ60: 239.0217217 | BB60: 16476.00017
A61: 49 | B61: 482.5268777 | D61: 0.08 | E61: 0.08 | F61: 0.1410611612 | G61: 0.1410611612 | H61: 0.08497772764 | I61: 0.08497772764 | J61: -0.06965393835 | K61: -0.06965393835 | L61: 0.3518566886 | M61: 0.3518566886 | O61: -21470 | P61: 443 | Q61: 196 | R61: 328 | S61: 20174 | AD61: 49 | AL61: =(1+alloc1*Simulator!E61+alloc2*Simulator!F61+alloc3*Simulator!H61+alloc4*Simulator!J61+alloc5*Simulator!M61) -> 1.099321937 | AM61: =IF(SUM($AM$13:AM60)<>0,0,IF(O61<0,B61-O60,0)) -> 0 | AN61: 0 | AT61: =IF(AQ61<>0,IF((AT60-B61)*(1+alloc1*Simulator!E61+alloc2*Simulator!F61+alloc3*Simulator!H61+alloc4*Simulator!J61+alloc5*Simulator!M61)<0,NA(),(AT60-B61)*(1+alloc1*Simulator!E61+alloc2*Simulator!F61+alloc3*Simulator!H61+alloc4*Simulator!J61+alloc5*Simulator!M61)),NA()) ->  | AV61: 72.07105673 | AX61: 65.82954186 | AZ61: 222.3729174 | BB61: 22273.19103
A62: 50 | B62: 521.1290279 | D62: 0.08 | E62: 0.08 | F62: 0.1248480043 | G62: 0.1248480043 | H62: -0.08844502934 | I62: -0.08844502934 | J62: 0.3591286225 | K62: 0.3591286225 | L62: -0.04673791623 | M62: -0.04673791623 | O62: -23750 | P62: 498 | Q62: 179 | R62: 446 | S62: 19231 | AD62: 50 | AL62: =(1+alloc1*Simulator!E62+alloc2*Simulator!F62+alloc3*Simulator!H62+alloc4*Simulator!J62+alloc5*Simulator!M62) -> 1.066034865 | AM62: =IF(SUM($AM$13:AM61)<>0,0,IF(O62<0,B62-O61,0)) -> 0 | AN62: 0 | AT62: =IF(AQ62<>0,IF((AT61-B62)*(1+alloc1*Simulator!E62+alloc2*Simulator!F62+alloc3*Simulator!H62+alloc4*Simulator!J62+alloc5*Simulator!M62)<0,NA(),(AT61-B62)*(1+alloc1*Simulator!E62+alloc2*Simulator!F62+alloc3*Simulator!H62+alloc4*Simulator!J62+alloc5*Simulator!M62)),NA()) ->  | AV62: 81.06898433 | AX62: 60.0072461 | AZ62: 302.2333969 | BB62: 21232.1885
A63: 51 | B63: 562.8193502 | D63: 0.08 | E63: 0.08 | F63: 0.03112459482 | G63: 0.03112459482 | H63: 0.07970681678 | I63: 0.07970681678 | J63: 0.6573658187 | K63: 0.6573658187 | L63: 0.2390095902 | M63: 0.2390095902 | O63: -26258 | P63: 514 | Q63: 193 | R63: 739 | S63: 23827 | AD63: 51 | AL63: =(1+alloc1*Simulator!E63+alloc2*Simulator!F63+alloc3*Simulator!H63+alloc4*Simulator!J63+alloc5*Simulator!M63) -> 1.148691364 | AM63: =IF(SUM($AM$13:AM62)<>0,0,IF(O63<0,B63-O62,0)) -> 0 | AN63: 0 | AT63: =IF(AQ63<>0,IF((AT62-B63)*(1+alloc1*Simulator!E63+alloc2*Simulator!F63+alloc3*Simulator!H63+alloc4*Simulator!J63+alloc5*Simulator!M63)<0,NA(),(AT62-B63)*(1+alloc1*Simulator!E63+alloc2*Simulator!F63+alloc3*Simulator!H63+alloc4*Simulator!J63+alloc5*Simulator!M63)),NA()) ->  | AV63: 83.59222362 | AX63: 64.79023267 | AZ63: 500.9113013 | BB63: 26306.88517
A64: 52 | B64: 607.8448982 | D64: 0.08 | E64: 0.08 | F64: 0.07216981605 | G64: 0.07216981605 | H64: 0.01335208831 | I64: 0.01335208831 | J64: 0.1209653333 | K64: 0.1209653333 | L64: -0.2739606441 | M64: -0.2739606441 | O64: -29015 | P64: 551 | Q64: 196 | R64: 828 | S64: 17299 | AD64: 52 | AL64: =(1+alloc1*Simulator!E64+alloc2*Simulator!F64+alloc3*Simulator!H64+alloc4*Simulator!J64+alloc5*Simulator!M64) -> 1.034587868 | AM64: =IF(SUM($AM$13:AM63)<>0,0,IF(O64<0,B64-O63,0)) -> 0 | AN64: 0 | AT64: =IF(AQ64<>0,IF((AT63-B64)*(1+alloc1*Simulator!E64+alloc2*Simulator!F64+alloc3*Simulator!H64+alloc4*Simulator!J64+alloc5*Simulator!M64)<0,NA(),(AT63-B64)*(1+alloc1*Simulator!E64+alloc2*Simulator!F64+alloc3*Simulator!H64+alloc4*Simulator!J64+alloc5*Simulator!M64)),NA()) ->  | AV64: 89.62505902 | AX64: 65.65531758 | AZ64: 561.5042039 | BB64: 19099.83396
A65: 53 | B65: 656.47249 | D65: 0.08 | E65: 0.08 | F65: 0.1146882222 | G65: 0.1146882222 | H65: 0.2490335329 | I65: 0.2490335329 | J65: -0.1546194383 | K65: -0.1546194383 | L65: 0.4128657828 | M65: 0.4128657828 | O65: -32045 | P65: 614 | Q65: 245 | R65: 700 | S65: 24441 | AD65: 53 | AL65: =(1+alloc1*Simulator!E65+alloc2*Simulator!F65+alloc3*Simulator!H65+alloc4*Simulator!J65+alloc5*Simulator!M65) -> 1.127100163 | AM65: =IF(SUM($AM$13:AM64)<>0,0,IF(O65<0,B65-O64,0)) -> 0 | AN65: 0 | AT65: =IF(AQ65<>0,IF((AT64-B65)*(1+alloc1*Simulator!E65+alloc2*Simulator!F65+alloc3*Simulator!H65+alloc4*Simulator!J65+alloc5*Simulator!M65)<0,NA(),(AT64-B65)*(1+alloc1*Simulator!E65+alloc2*Simulator!F65+alloc3*Simulator!H65+alloc4*Simulator!J65+alloc5*Simulator!M65)),NA()) ->  | AV65: 99.90399771 | AX65: 82.00569327 | AZ65: 474.6847393 | BB65: 26985.50187
A66: 54 | B66: 708.9902892 | D66: 0.08 | E66: 0.08 | F66: 0.1028339284 | G66: 0.1028339284 | H66: 0.07150395242 | I66: 0.07150395242 | J66: 0.1391211761 | K66: 0.1391211761 | L66: 0.8897488158 | M66: 0.8897488158 | O66: -35374 | P66: 677 | Q66: 263 | R66: 797 | S66: 46187 | AD66: 54 | AL66: =(1+alloc1*Simulator!E66+alloc2*Simulator!F66+alloc3*Simulator!H66+alloc4*Simulator!J66+alloc5*Simulator!M66) -> 1.167471183 | AM66: =IF(SUM($AM$13:AM65)<>0,0,IF(O66<0,B66-O65,0)) -> 0 | AN66: 0 | AT66: =IF(AQ66<>0,IF((AT65-B66)*(1+alloc1*Simulator!E66+alloc2*Simulator!F66+alloc3*Simulator!H66+alloc4*Simulator!J66+alloc5*Simulator!M66)<0,NA(),(AT65-B66)*(1+alloc1*Simulator!E66+alloc2*Simulator!F66+alloc3*Simulator!H66+alloc4*Simulator!J66+alloc5*Simulator!M66)),NA()) ->  | AV66: 110.1775183 | AX66: 87.86942446 | AZ66: 540.7234385 | BB66: 50995.82019
A67: 55 | B67: 765.7095124 | D67: 0.08 | E67: 0.08 | F67: 0.08605204611 | G67: 0.08605204611 | H67: 0.04011378766 | I67: 0.04011378766 | J67: 0.2590529657 | K67: 0.2590529657 | L67: -0.06317392595 | M67: -0.06317392595 | O67: -39031 | P67: 735 | Q67: 274 | R67: 1003 | S67: 43269 | AD67: 55 | AL67: =(1+alloc1*Simulator!E67+alloc2*Simulator!F67+alloc3*Simulator!H67+alloc4*Simulator!J67+alloc5*Simulator!M67) -> 1.076215866 | AM67: =IF(SUM($AM$13:AM66)<>0,0,IF(O67<0,B67-O66,0)) -> 0 | AN67: 0 | AT67: =IF(AQ67<>0,IF((AT66-B67)*(1+alloc1*Simulator!E67+alloc2*Simulator!F67+alloc3*Simulator!H67+alloc4*Simulator!J67+alloc5*Simulator!M67)<0,NA(),(AT66-B67)*(1+alloc1*Simulator!E67+alloc2*Simulator!F67+alloc3*Simulator!H67+alloc4*Simulator!J67+alloc5*Simulator!M67)),NA()) ->  | AV67: 119.6585191 | AX67: 91.39419989 | AZ67: 680.7994489 | BB67: 47774.21402
A68: 56 | B68: 826.9662734 | D68: 0.08 | E68: 0.08 | F68: 0.1136244568 | G68: 0.1136244568 | H68: -0.07057642735 | I68: -0.07057642735 | J68: 0.09211132559 | K68: 0.09211132559 | L68: 0.1796226525 | M68: 0.1796226525 | O68: -43047 | P68: 819 | Q68: 255 | R68: 1095 | S68: 51041 | AD68: 56 | AL68: =(1+alloc1*Simulator!E68+alloc2*Simulator!F68+alloc3*Simulator!H68+alloc4*Simulator!J68+alloc5*Simulator!M68) -> 1.064420558 | AM68: =IF(SUM($AM$13:AM67)<>0,0,IF(O68<0,B68-O67,0)) -> 0 | AN68: 0 | AT68: =IF(AQ68<>0,IF((AT67-B68)*(1+alloc1*Simulator!E68+alloc2*Simulator!F68+alloc3*Simulator!H68+alloc4*Simulator!J68+alloc5*Simulator!M68)<0,NA(),(AT67-B68)*(1+alloc1*Simulator!E68+alloc2*Simulator!F68+alloc3*Simulator!H68+alloc4*Simulator!J68+alloc5*Simulator!M68)),NA()) ->  | AV68: 133.2546534 | AX68: 84.94392378 | AZ68: 743.5087886 | BB68: 56355.54507
A69: 57 | B69: 893.1235752 | D69: 0.08 | E69: 0.08 | F69: 0.1179888761 | G69: 0.1179888761 | H69: 0.02109007562 | I69: 0.02109007562 | J69: -0.05464622839 | K69: -0.05464622839 | L69: 0.7207218616 | M69: 0.7207218616 | O69: -47455 | P69: 916 | Q69: 260 | R69: 1035 | S69: 87827 | AD69: 57 | AL69: =(1+alloc1*Simulator!E69+alloc2*Simulator!F69+alloc3*Simulator!H69+alloc4*Simulator!J69+alloc5*Simulator!M69) -> 1.122624466 | AM69: =IF(SUM($AM$13:AM68)<>0,0,IF(O69<0,B69-O68,0)) -> 0 | AN69: 0 | AT69: =IF(AQ69<>0,IF((AT68-B69)*(1+alloc1*Simulator!E69+alloc2*Simulator!F69+alloc3*Simulator!H69+alloc4*Simulator!J69+alloc5*Simulator!M69)<0,NA(),(AT68-B69)*(1+alloc1*Simulator!E69+alloc2*Simulator!F69+alloc3*Simulator!H69+alloc4*Simulator!J69+alloc5*Simulator!M69)),NA()) ->  | AV69: 148.9772202 | AX69: 86.73539756 | AZ69: 702.8788375 | BB69: 96972.21842
A70: 58 | B70: 964.5734612 | D70: 0.08 | E70: 0.08 | F70: 0.06666864738 | G70: 0.06666864738 | H70: 0.05384443855 | I70: 0.05384443855 | J70: 0.01725837658 | K70: 0.01725837658 | L70: 0.3351994739 | M70: 0.3351994739 | O70: -52293 | P70: 977 | Q70: 274 | R70: 1053 | S70: 117267 | AD70: 58 | AL70: =(1+alloc1*Simulator!E70+alloc2*Simulator!F70+alloc3*Simulator!H70+alloc4*Simulator!J70+alloc5*Simulator!M70) -> 1.092681537 | AM70: =IF(SUM($AM$13:AM69)<>0,0,IF(O70<0,B70-O69,0)) -> 0 | AN70: 0 | AT70: =IF(AQ70<>0,IF((AT69-B70)*(1+alloc1*Simulator!E70+alloc2*Simulator!F70+alloc3*Simulator!H70+alloc4*Simulator!J70+alloc5*Simulator!M70)<0,NA(),(AT69-B70)*(1+alloc1*Simulator!E70+alloc2*Simulator!F70+alloc3*Simulator!H70+alloc4*Simulator!J70+alloc5*Simulator!M70)),NA()) ->  | AV70: 158.9093299 | AX70: 91.40561634 | AZ70: 715.0093852 | BB70: 129477.255
A71: 59 | B71: 1041.739338 | D71: 0.08 | E71: 0.08 | F71: 0.04804648213 | G71: 0.04804648213 | H71: 0.2141506129 | I71: 0.2141506129 | J71: 0.3287687786 | K71: 0.3287687786 | L71: 0.0613774855 | M71: 0.0613774855 | O71: -57602 | P71: 1024 | Q71: 333 | R71: 1399 | S71: 124465 | AD71: 59 | AL71: =(1+alloc1*Simulator!E71+alloc2*Simulator!F71+alloc3*Simulator!H71+alloc4*Simulator!J71+alloc5*Simulator!M71) -> 1.126649397 | AM71: =IF(SUM($AM$13:AM70)<>0,0,IF(O71<0,B71-O70,0)) -> 0 | AN71: 0 | AT71: =IF(AQ71<>0,IF((AT70-B71)*(1+alloc1*Simulator!E71+alloc2*Simulator!F71+alloc3*Simulator!H71+alloc4*Simulator!J71+alloc5*Simulator!M71)<0,NA(),(AT70-B71)*(1+alloc1*Simulator!E71+alloc2*Simulator!F71+alloc3*Simulator!H71+alloc4*Simulator!J71+alloc5*Simulator!M71)),NA()) ->  | AV71: 166.5443642 | AX71: 110.9801851 | AZ71: 950.0821474 | BB71: 137424.2434
A72: 60 | B72: 1125.078485 | D72: 0.08 | E72: 0.08 | F72: 0.1483024697 | G72: 0.1483024697 | H72: 0.07821707498 | I72: 0.07821707498 | J72: -0.2603577807 | K72: -0.2603577807 | L72: 0.2827626632 | M72: 0.2827626632 | O72: -63425 | P72: 1176 | Q72: 359 | R72: 1035 | S72: 159659 | AD72: 60 | AL72: =(1+alloc1*Simulator!E72+alloc2*Simulator!F72+alloc3*Simulator!H72+alloc4*Simulator!J72+alloc5*Simulator!M72) -> 1.07271415 | AM72: =IF(SUM($AM$13:AM71)<>0,0,IF(O72<0,B72-O71,0)) -> 0 | AN72: 0 | AT72: =IF(AQ72<>0,IF((AT71-B72)*(1+alloc1*Simulator!E72+alloc2*Simulator!F72+alloc3*Simulator!H72+alloc4*Simulator!J72+alloc5*Simulator!M72)<0,NA(),(AT71-B72)*(1+alloc1*Simulator!E72+alloc2*Simulator!F72+alloc3*Simulator!H72+alloc4*Simulator!J72+alloc5*Simulator!M72)),NA()) ->  | AV72: 191.2433047 | AX72: 119.6607306 | AZ72: 702.720868 | BB72: 176282.6884
A73: 61 | B73: 1215.084764 | D73: 0.08 | E73: 0.08 | F73: 0.08798043188 | G73: 0.08798043188 | H73: 0.1247497876 | I73: 0.1247497876 | J73: 0.2200792421 | K73: 0.2200792421 | L73: -0.2050683172 | M73: -0.2050683172 | O73: -69811 | P73: 1279 | Q73: 404 | R73: 1263 | S73: 126918 | AD73: 61 | AL73: =(1+alloc1*Simulator!E73+alloc2*Simulator!F73+alloc3*Simulator!H73+alloc4*Simulator!J73+alloc5*Simulator!M73) -> 1.075249093 | AM73: =IF(SUM($AM$13:AM72)<>0,0,IF(O73<0,B73-O72,0)) -> 0 | AN73: 0 | AT73: =IF(AQ73<>0,IF((AT72-B73)*(1+alloc1*Simulator!E73+alloc2*Simulator!F73+alloc3*Simulator!H73+alloc4*Simulator!J73+alloc5*Simulator!M73)<0,NA(),(AT72-B73)*(1+alloc1*Simulator!E73+alloc2*Simulator!F73+alloc3*Simulator!H73+alloc4*Simulator!J73+alloc5*Simulator!M73)),NA()) ->  | AV73: 208.0689733 | AX73: 134.5883813 | AZ73: 857.375144 | BB73: 140132.6941
A74: 62 | B74: 1312.291545 | D74: 0.08 | E74: 0.08 | F74: 0.09702711823 | G74: 0.09702711823 | H74: 0.08872470342 | I74: 0.08872470342 | J74: -0.2533720438 | K74: -0.2533720438 | L74: -0.03822238034 | M74: -0.03822238034 | O74: -76813 | P74: 1403 | Q74: 440 | R74: 943 | S74: 122067 | AD74: 62 | AL74: =(1+alloc1*Simulator!E74+alloc2*Simulator!F74+alloc3*Simulator!H74+alloc4*Simulator!J74+alloc5*Simulator!M74) -> 1.03828821 | AM74: =IF(SUM($AM$13:AM73)<>0,0,IF(O74<0,B74-O73,0)) -> 0 | AN74: 0 | AT74: =IF(AQ74<>0,IF((AT73-B74)*(1+alloc1*Simulator!E74+alloc2*Simulator!F74+alloc3*Simulator!H74+alloc4*Simulator!J74+alloc5*Simulator!M74)<0,NA(),(AT73-B74)*(1+alloc1*Simulator!E74+alloc2*Simulator!F74+alloc3*Simulator!H74+alloc4*Simulator!J74+alloc5*Simulator!M74)),NA()) ->  | AV74: 228.2573061 | AX74: 146.5296955 | AZ74: 640.1402515 | BB74: 134776.489
A75: 63 | B75: 1417.274869 | D75: 0.08 | E75: 0.08 | F75: 0.1335012732 | G75: 0.1335012732 | H75: 0.02970274649 | I75: 0.02970274649 | J75: 0.3101874344 | K75: 0.3101874344 | L75: 0.1654847832 | M75: 0.1654847832 | O75: -84489 | P75: 1590 | Q75: 453 | R75: 1236 | S75: 142267 | AD75: 63 | AL75: =(1+alloc1*Simulator!E75+alloc2*Simulator!F75+alloc3*Simulator!H75+alloc4*Simulator!J75+alloc5*Simulator!M75) -> 1.106857898 | AM75: =IF(SUM($AM$13:AM74)<>0,0,IF(O75<0,B75-O74,0)) -> 0 | AN75: 0 | AT75: =IF(AQ75<>0,IF((AT74-B75)*(1+alloc1*Simulator!E75+alloc2*Simulator!F75+alloc3*Simulator!H75+alloc4*Simulator!J75+alloc5*Simulator!M75)<0,NA(),(AT74-B75)*(1+alloc1*Simulator!E75+alloc2*Simulator!F75+alloc3*Simulator!H75+alloc4*Simulator!J75+alloc5*Simulator!M75)),NA()) ->  | AV75: 258.7299471 | AX75: 150.8820299 | AZ75: 838.7037137 | BB75: 157079.9471
A76: 64 | B76: 1530.656858 | D76: 0.08 | E76: 0.08 | F76: 0.1112376328 | G76: 0.1112376328 | H76: 0.1252070144 | I76: 0.1252070144 | J76: 0.2252892731 | K76: 0.2252892731 | L76: 0.4855316748 | M76: 0.4855316748 | O76: -92901 | P76: 1767 | Q76: 510 | R76: 1514 | S76: 211342 | AD76: 64 | AL76: =(1+alloc1*Simulator!E76+alloc2*Simulator!F76+alloc3*Simulator!H76+alloc4*Simulator!J76+alloc5*Simulator!M76) -> 1.147247261 | AM76: =IF(SUM($AM$13:AM75)<>0,0,IF(O76<0,B76-O75,0)) -> 0 | AN76: 0 | AT76: =IF(AQ76<>0,IF((AT75-B76)*(1+alloc1*Simulator!E76+alloc2*Simulator!F76+alloc3*Simulator!H76+alloc4*Simulator!J76+alloc5*Simulator!M76)<0,NA(),(AT75-B76)*(1+alloc1*Simulator!E76+alloc2*Simulator!F76+alloc3*Simulator!H76+alloc4*Simulator!J76+alloc5*Simulator!M76)),NA()) ->  | AV76: 287.510454 | AX76: 169.7735184 | AZ76: 1027.654664 | BB76: 233347.2369
A77: 65 | B77: =(prepen1*(1+rinf)^(A77-1)/100000)-(pension/100000)-(income*(1+incrate)^(A77-1)/100000) -> 1653.109407 | D77: =IF(E77<>"",E77,_min1) -> 0.08 | E77: 0.08 | F77: 0.07190097737 | G77: =IF(F77<>"",F77,NORMINV(RAND(),mean2,stdev2)) -> 0.07190097737 | H77: 0.1337894809 | I77: =IF(H77<>"",H77,NORMINV(RAND(),mean3,stdev3)) -> 0.1337894809 | J77: 0.3683843216 | K77: =IF(J77<>"",J77,NORMINV(RAND(),mean4,stdev4)) -> 0.3683843216 | L77: =IF(M77<>"",M77,NORMINV(RAND(),mean5,stdev5)) -> 0.2290252213 | M77: 0.2290252213 | O77: -102118 | P77: =ROUND((P76-U76-V76+IF(trans3="bucket 2",X76)+IF(trans4="bucket 2",Z76)+IF(trans5="bucket 2",AB76))*(1+F77),0) -> 1894 | Q77: =ROUND((Q76-W76-X76+IF(trans2="bucket 3",V76)+IF(trans4="bucket 3",Z76)+IF(trans5="bucket 3",AB76))*(1+H77),0) -> 578 | R77: =ROUND((R76-Y76-Z76+IF(trans2="bucket 4",V76)+IF(trans3="bucket 4",X76)+IF(trans5="bucket 4",AB76))*(1+J77),0) -> 2072 | S77: =ROUND((S76-AA76-AB76+IF(trans2="bucket 5",V76)+IF(trans3="bucket 5",X76)+IF(trans4="bucket 5",Z76))*(1+M77),0) -> 259745 | AD77: 65 | AL77: =(1+alloc1*Simulator!E77+alloc2*Simulator!F77+alloc3*Simulator!H77+alloc4*Simulator!J77+alloc5*Simulator!M77) -> 1.133688948 | AM77: =IF(SUM($AM$13:AM76)<>0,0,IF(O77<0,B77-O76,0)) -> 0 | AN77: 0 | AS77: =IF(AQ77<>0,IF(AS76- B77<0,NA(),(AS76-B77)*(1+retroi)),NA()) ->  | AT77: =IF(AQ77<>0,IF((AT76-B77)*(1+alloc1*Simulator!E77+alloc2*Simulator!F77+alloc3*Simulator!H77+alloc4*Simulator!J77+alloc5*Simulator!M77)<0,NA(),(AT76-B77)*(1+alloc1*Simulator!E77+alloc2*Simulator!F77+alloc3*Simulator!H77+alloc4*Simulator!J77+alloc5*Simulator!M77)),NA()) ->  | AU77: =IF(AQ77<>0,IF(AU76-B77<0,NA(),(AU76-B77)*(1+retroi)),NA()) ->  | AV77: 308.1827366 | AX77: 192.4874293 | AZ77: 1406.22653 | BB77: 286789.6394
A78: =A77+1 -> 66 | B78: 1785.358159 | D78: 0.08 | E78: 0.08 | F78: 0.07600037995 | G78: 0.07600037995 | H78: -0.01289755713 | I78: -0.01289755713 | J78: -0.1883271836 | K78: -0.1883271836 | L78: 0.1906854231 | M78: 0.1906854231 | O78: =ROUND((O77-B78+U77+W77+Y77+AA77)*(1+D78),0) -> -112216 | P78: 2038 | Q78: 571 | R78: 1682 | S78: 309275 | AD78: =AD77+1 -> 66 | AL78: =(1+alloc1*Simulator!E78+alloc2*Simulator!F78+alloc3*Simulator!H78+alloc4*Simulator!J78+alloc5*Simulator!M78) -> 1.045256351 | AM78: =IF(SUM($AM$13:AM77)<>0,0,IF(O78<0,B78-O77,0)) -> 0 | AN78: =IF(AM78<>0,A78,0) -> 0 | AT78: =IF(AQ78<>0,IF((AT77-B78)*(1+alloc1*Simulator!E78+alloc2*Simulator!F78+alloc3*Simulator!H78+alloc4*Simulator!J78+alloc5*Simulator!M78)<0,NA(),(AT77-B78)*(1+alloc1*Simulator!E78+alloc2*Simulator!F78+alloc3*Simulator!H78+alloc4*Simulator!J78+alloc5*Simulator!M78)),NA()) ->  | AV78: =AV77*(1+F78) -> 331.6047417 | AW78: =(AV78/$AV$12)^(1/AQ78)-1 ->  | AX78: =AX77*(1+H78) -> 190.0048117 | AY78: =(AX78/$AX$12)^(1/AQ78)-1 ->  | AZ78: =AZ77*(1+J78) -> 1141.395848 | BA78: =(AZ78/$AZ$12)^(1/AQ78)-1 ->  | BB78: =BB77*(1+M78) -> 341476.2432 | BC78: =(BB78/$BB$12)^(1/AQ78)-1 -> 
A79: 67 | B79: 1928.186812 | D79: 0.08 | E79: 0.08 | F79: 0.03400306527 | G79: 0.03400306527 | H79: 0.1593531972 | I79: 0.1593531972 | J79: 0.2048837166 | K79: 0.2048837166 | L79: -0.08927411406 | M79: -0.08927411406 | O79: -123276 | P79: 2107 | Q79: 662 | R79: 2027 | S79: 281665 | AD79: 67 | AL79: =(1+alloc1*Simulator!E79+alloc2*Simulator!F79+alloc3*Simulator!H79+alloc4*Simulator!J79+alloc5*Simulator!M79) -> 1.086831906 | AM79: =IF(SUM($AM$13:AM78)<>0,0,IF(O79<0,B79-O78,0)) -> 0 | AN79: 0 | AT79: =IF(AQ79<>0,IF((AT78-B79)*(1+alloc1*Simulator!E79+alloc2*Simulator!F79+alloc3*Simulator!H79+alloc4*Simulator!J79+alloc5*Simulator!M79)<0,NA(),(AT78-B79)*(1+alloc1*Simulator!E79+alloc2*Simulator!F79+alloc3*Simulator!H79+alloc4*Simulator!J79+alloc5*Simulator!M79)),NA()) ->  | AV79: 342.8803194 | AX79: 220.2826859 | AZ79: 1375.249271 | BB79: 310991.2541
A80: 68 | B80: 2082.441757 | D80: 0.08 | E80: 0.08 | F80: 0.08046699956 | G80: 0.08046699956 | H80: -0.05827976971 | I80: -0.05827976971 | J80: -0.04541227165 | K80: -0.04541227165 | L80: -0.1202541093 | M80: -0.1202541093 | O80: -135387 | P80: 2277 | Q80: 623 | R80: 1935 | S80: 247794 | AD80: 68 | AL80: =(1+alloc1*Simulator!E80+alloc2*Simulator!F80+alloc3*Simulator!H80+alloc4*Simulator!J80+alloc5*Simulator!M80) -> 1.019824108 | AM80: =IF(SUM($AM$13:AM79)<>0,0,IF(O80<0,B80-O79,0)) -> 0 | AN80: 0 | AT80: =IF(AQ80<>0,IF((AT79-B80)*(1+alloc1*Simulator!E80+alloc2*Simulator!F80+alloc3*Simulator!H80+alloc4*Simulator!J80+alloc5*Simulator!M80)<0,NA(),(AT79-B80)*(1+alloc1*Simulator!E80+alloc2*Simulator!F80+alloc3*Simulator!H80+alloc4*Simulator!J80+alloc5*Simulator!M80)),NA()) ->  | AV80: 370.4708699 | AX80: 207.4446617 | AZ80: 1312.796078 | BB80: 273593.2778
A81: 69 | B81: 2249.037098 | D81: 0.08 | E81: 0.08 | F81: 0.1083096388 | G81: 0.1083096388 | H81: 0.113307668 | I81: 0.113307668 | J81: 0.1466032053 | K81: 0.1466032053 | L81: 0.1992747529 | M81: 0.1992747529 | O81: -148647 | P81: 2524 | Q81: 694 | R81: 2219 | S81: 297173 | AD81: 69 | AL81: =(1+alloc1*Simulator!E81+alloc2*Simulator!F81+alloc3*Simulator!H81+alloc4*Simulator!J81+alloc5*Simulator!M81) -> 1.108080293 | AM81: =IF(SUM($AM$13:AM80)<>0,0,IF(O81<0,B81-O80,0)) -> 0 | AN81: 0 | AT81: =IF(AQ81<>0,IF((AT80-B81)*(1+alloc1*Simulator!E81+alloc2*Simulator!F81+alloc3*Simulator!H81+alloc4*Simulator!J81+alloc5*Simulator!M81)<0,NA(),(AT80-B81)*(1+alloc1*Simulator!E81+alloc2*Simulator!F81+alloc3*Simulator!H81+alloc4*Simulator!J81+alloc5*Simulator!M81)),NA()) ->  | AV81: 410.596436 | AX81: 230.9497325 | AZ81: 1505.256191 | BB81: 328113.5106
A82: 70 | B82: 2428.960066 | D82: 0.08 | E82: 0.08 | F82: 0.04670331998 | G82: 0.04670331998 | H82: -0.01281256392 | I82: -0.01281256392 | J82: -0.1749839424 | K82: -0.1749839424 | L82: 0.5796250652 | M82: 0.5796250652 | O82: -163162 | P82: 2642 | Q82: 685 | R82: 1831 | S82: 469422 | AD82: 70 | AL82: =(1+alloc1*Simulator!E82+alloc2*Simulator!F82+alloc3*Simulator!H82+alloc4*Simulator!J82+alloc5*Simulator!M82) -> 1.082571931 | AM82: =IF(SUM($AM$13:AM81)<>0,0,IF(O82<0,B82-O81,0)) -> 0 | AN82: 0 | AT82: =IF(AQ82<>0,IF((AT81-B82)*(1+alloc1*Simulator!E82+alloc2*Simulator!F82+alloc3*Simulator!H82+alloc4*Simulator!J82+alloc5*Simulator!M82)<0,NA(),(AT81-B82)*(1+alloc1*Simulator!E82+alloc2*Simulator!F82+alloc3*Simulator!H82+alloc4*Simulator!J82+alloc5*Simulator!M82)),NA()) ->  | AV82: 429.7726527 | AX82: 227.9906743 | AZ82: 1241.860528 | BB82: 518296.3256
A83: 71 | B83: 2623.276871 | D83: 0.08 | E83: 0.08 | F83: 0.06118745688 | G83: 0.06118745688 | H83: 0.08438531799 | I83: 0.08438531799 | J83: 0.1531019828 | K83: 0.1531019828 | L83: 0.232114739 | M83: 0.232114739 | O83: -179048 | P83: 2804 | Q83: 743 | R83: 2111 | S83: 578382 | AD83: 71 | AL83: =(1+alloc1*Simulator!E83+alloc2*Simulator!F83+alloc3*Simulator!H83+alloc4*Simulator!J83+alloc5*Simulator!M83) -> 1.101517481 | AM83: =IF(SUM($AM$13:AM82)<>0,0,IF(O83<0,B83-O82,0)) -> 0 | AN83: 0 | AT83: =IF(AQ83<>0,IF((AT82-B83)*(1+alloc1*Simulator!E83+alloc2*Simulator!F83+alloc3*Simulator!H83+alloc4*Simulator!J83+alloc5*Simulator!M83)<0,NA(),(AT82-B83)*(1+alloc1*Simulator!E83+alloc2*Simulator!F83+alloc3*Simulator!H83+alloc4*Simulator!J83+alloc5*Simulator!M83)),NA()) ->  | AV83: 456.0693484 | AX83: 247.2297399 | AZ83: 1431.991837 | BB83: 638600.542
A84: 72 | B84: 2833.13902 | D84: 0.08 | E84: 0.08 | F84: 0.1158963851 | G84: 0.1158963851 | H84: 0.056563852 | I84: 0.056563852 | J84: 0.05680304066 | K84: 0.05680304066 | L84: -0.06376655322 | M84: -0.06376655322 | O84: -196432 | P84: 3129 | Q84: 785 | R84: 2231 | S84: 541501 | AD84: 72 | AL84: =(1+alloc1*Simulator!E84+alloc2*Simulator!F84+alloc3*Simulator!H84+alloc4*Simulator!J84+alloc5*Simulator!M84) -> 1.062206058 | AM84: =IF(SUM($AM$13:AM83)<>0,0,IF(O84<0,B84-O83,0)) -> 0 | AN84: 0 | AT84: =IF(AQ84<>0,IF((AT83-B84)*(1+alloc1*Simulator!E84+alloc2*Simulator!F84+alloc3*Simulator!H84+alloc4*Simulator!J84+alloc5*Simulator!M84)<0,NA(),(AT83-B84)*(1+alloc1*Simulator!E84+alloc2*Simulator!F84+alloc3*Simulator!H84+alloc4*Simulator!J84+alloc5*Simulator!M84)),NA()) ->  | AV84: 508.9261372 | AX84: 261.2140063 | AZ84: 1513.333328 | BB84: 597879.1865
A85: 73 | B85: 3059.790142 | D85: 0.08 | E85: 0.08 | F85: 0.1108906599 | G85: 0.1108906599 | H85: 0.1227777627 | I85: 0.1227777627 | J85: 0.3760936661 | K85: 0.3760936661 | L85: 0.397536379 | M85: 0.397536379 | O85: -215451 | P85: 3476 | Q85: 881 | R85: 3070 | S85: 756767 | AD85: 73 | AL85: =(1+alloc1*Simulator!E85+alloc2*Simulator!F85+alloc3*Simulator!H85+alloc4*Simulator!J85+alloc5*Simulator!M85) -> 1.153007623 | AM85: =IF(SUM($AM$13:AM84)<>0,0,IF(O85<0,B85-O84,0)) -> 0 | AN85: 0 | AT85: =IF(AQ85<>0,IF((AT84-B85)*(1+alloc1*Simulator!E85+alloc2*Simulator!F85+alloc3*Simulator!H85+alloc4*Simulator!J85+alloc5*Simulator!M85)<0,NA(),(AT84-B85)*(1+alloc1*Simulator!E85+alloc2*Simulator!F85+alloc3*Simulator!H85+alloc4*Simulator!J85+alloc5*Simulator!M85)),NA()) ->  | AV85: 565.3612924 | AX85: 293.2852776 | AZ85: 2082.488407 | BB85: 835557.9135
A86: 74 | B86: 3304.573353 | D86: 0.08 | E86: 0.08 | F86: 0.1000403179 | G86: 0.1000403179 | H86: 0.04926141422 | I86: 0.04926141422 | J86: -0.03023268254 | K86: -0.03023268254 | L86: 0.06312753956 | M86: 0.06312753956 | O86: -236256 | P86: 3824 | Q86: 924 | R86: 2977 | S86: 804540 | AD86: 74 | AL86: =(1+alloc1*Simulator!E86+alloc2*Simulator!F86+alloc3*Simulator!H86+alloc4*Simulator!J86+alloc5*Simulator!M86) -> 1.0631458 | AM86: =IF(SUM($AM$13:AM85)<>0,0,IF(O86<0,B86-O85,0)) -> 0 | AN86: 0 | AT86: =IF(AQ86<>0,IF((AT85-B86)*(1+alloc1*Simulator!E86+alloc2*Simulator!F86+alloc3*Simulator!H86+alloc4*Simulator!J86+alloc5*Simulator!M86)<0,NA(),(AT85-B86)*(1+alloc1*Simulator!E86+alloc2*Simulator!F86+alloc3*Simulator!H86+alloc4*Simulator!J86+alloc5*Simulator!M86)),NA()) ->  | AV86: 621.9202158 | AX86: 307.7329251 | AZ86: 2019.529196 | BB86: 888304.6287
A87: 75 | B87: 3568.939222 | D87: 0.08 | E87: 0.08 | F87: 0.1073993549 | G87: 0.1073993549 | H87: 0.1276616656 | I87: 0.1276616656 | J87: 0.04982505718 | K87: 0.04982505718 | L87: -0.1800815903 | M87: -0.1800815903 | O87: -259011 | P87: 4235 | Q87: 1042 | R87: 3125 | S87: 659657 | AD87: 75 | AL87: =(1+alloc1*Simulator!E87+alloc2*Simulator!F87+alloc3*Simulator!H87+alloc4*Simulator!J87+alloc5*Simulator!M87) -> 1.063246615 | AM87: =IF(SUM($AM$13:AM86)<>0,0,IF(O87<0,B87-O86,0)) -> 0 | AN87: 0 | AT87: =IF(AQ87<>0,IF((AT86-B87)*(1+alloc1*Simulator!E87+alloc2*Simulator!F87+alloc3*Simulator!H87+alloc4*Simulator!J87+alloc5*Simulator!M87)<0,NA(),(AT86-B87)*(1+alloc1*Simulator!E87+alloc2*Simulator!F87+alloc3*Simulator!H87+alloc4*Simulator!J87+alloc5*Simulator!M87)),NA()) ->  | AV87: 688.7140458 | AX87: 347.0186229 | AZ87: 2120.152354 | BB87: 728337.3185
A88: 76 | B88: 3854.45436 | D88: 0.08 | E88: 0.08 | F88: 0.0664079988 | G88: 0.0664079988 | H88: 0.1326226304 | I88: 0.1326226304 | J88: -0.07666144522 | K88: -0.07666144522 | L88: -0.3451939337 | M88: -0.3451939337 | O88: -283895 | P88: 4516 | Q88: 1180 | R88: 2885 | S88: 431947 | AD88: 76 | AL88: =(1+alloc1*Simulator!E88+alloc2*Simulator!F88+alloc3*Simulator!H88+alloc4*Simulator!J88+alloc5*Simulator!M88) -> 1.030979788 | AM88: =IF(SUM($AM$13:AM87)<>0,0,IF(O88<0,B88-O87,0)) -> 0 | AN88: 0 | AT88: =IF(AQ88<>0,IF((AT87-B88)*(1+alloc1*Simulator!E88+alloc2*Simulator!F88+alloc3*Simulator!H88+alloc4*Simulator!J88+alloc5*Simulator!M88)<0,NA(),(AT87-B88)*(1+alloc1*Simulator!E88+alloc2*Simulator!F88+alloc3*Simulator!H88+alloc4*Simulator!J88+alloc5*Simulator!M88)),NA()) ->  | AV88: 734.4501673 | AX88: 393.0411455 | AZ88: 1957.618411 | BB88: 476919.6944
A89: 77 | B89: 4162.810708 | D89: 0.08 | E89: 0.08 | F89: 0.09428660959 | G89: 0.09428660959 | H89: 0.1308600808 | I89: 0.1308600808 | J89: -0.03551787039 | K89: -0.03551787039 | L89: 0.1541328801 | M89: 0.1541328801 | O89: -311102 | P89: 4942 | Q89: 1334 | R89: 2783 | S89: 498524 | AD89: 77 | AL89: =(1+alloc1*Simulator!E89+alloc2*Simulator!F89+alloc3*Simulator!H89+alloc4*Simulator!J89+alloc5*Simulator!M89) -> 1.087462178 | AM89: =IF(SUM($AM$13:AM88)<>0,0,IF(O89<0,B89-O88,0)) -> 0 | AN89: 0 | AT89: =IF(AQ89<>0,IF((AT88-B89)*(1+alloc1*Simulator!E89+alloc2*Simulator!F89+alloc3*Simulator!H89+alloc4*Simulator!J89+alloc5*Simulator!M89)<0,NA(),(AT88-B89)*(1+alloc1*Simulator!E89+alloc2*Simulator!F89+alloc3*Simulator!H89+alloc4*Simulator!J89+alloc5*Simulator!M89)),NA()) ->  | AV89: 803.6989835 | AX89: 444.4745415 | AZ89: 1888.087974 | BB89: 550428.7005
A90: 78 | B90: 4495.835565 | D90: 0.08 | E90: 0.08 | F90: 0.07369818934 | G90: 0.07369818934 | H90: 0.1556022546 | I90: 0.1556022546 | J90: 0.2048583317 | K90: 0.2048583317 | L90: -0.02697671552 | M90: -0.02697671552 | O90: -340846 | P90: 5306 | Q90: 1542 | R90: 3353 | S90: 485075 | AD90: 78 | AL90: =(1+alloc1*Simulator!E90+alloc2*Simulator!F90+alloc3*Simulator!H90+alloc4*Simulator!J90+alloc5*Simulator!M90) -> 1.096278431 | AM90: =IF(SUM($AM$13:AM89)<>0,0,IF(O90<0,B90-O89,0)) -> 0 | AN90: 0 | AR90: =IF(AQ90=SUM(AN77:AN1176),NA(),IF(AQ90<>0,IF(SUM(O90:S90)<0,NA(),SUM(O90:S90)),NA())) ->  | AT90: =IF(AQ90<>0,IF((AT89-B90)*(1+alloc1*Simulator!E90+alloc2*Simulator!F90+alloc3*Simulator!H90+alloc4*Simulator!J90+alloc5*Simulator!M90)<0,NA(),(AT89-B90)*(1+alloc1*Simulator!E90+alloc2*Simulator!F90+alloc3*Simulator!H90+alloc4*Simulator!J90+alloc5*Simulator!M90)),NA()) ->  | AV90: 862.9301433 | AX90: 513.6357823 | AZ90: 2274.878526 | BB90: 535579.9421
A91: 79 | B91: 4855.50241 | D91: 0.08 | E91: 0.08 | F91: 0.1160104382 | G91: 0.1160104382 | H91: 0.07114803583 | I91: 0.07114803583 | J91: -0.006923443559 | K91: -0.006923443559 | L91: -0.3281636114 | M91: -0.3281636114 | O91: -373358 | P91: 5922 | Q91: 1652 | R91: 3330 | S91: 325891 | AD91: 79 | AL91: =(1+alloc1*Simulator!E91+alloc2*Simulator!F91+alloc3*Simulator!H91+alloc4*Simulator!J91+alloc5*Simulator!M91) -> 1.032321945 | AM91: =IF(SUM($AM$13:AM90)<>0,0,IF(O91<0,B91-O90,0)) -> 0 | AN91: 0 | AT91: =IF(AQ91<>0,IF((AT90-B91)*(1+alloc1*Simulator!E91+alloc2*Simulator!F91+alloc3*Simulator!H91+alloc4*Simulator!J91+alloc5*Simulator!M91)<0,NA(),(AT90-B91)*(1+alloc1*Simulator!E91+alloc2*Simulator!F91+alloc3*Simulator!H91+alloc4*Simulator!J91+alloc5*Simulator!M91)),NA()) ->  | AV91: 963.0390474 | AX91: 550.1799593 | AZ91: 2259.128533 | BB91: 359822.0941
A92: 80 | B92: 5243.942603 | D92: 0.08 | E92: 0.08 | F92: 0.07643901236 | G92: 0.07643901236 | H92: 0.05402086446 | I92: 0.05402086446 | J92: 0.1697901007 | K92: 0.1697901007 | L92: 0.05956679087 | M92: 0.05956679087 | O92: -408890 | P92: 6375 | Q92: 1741 | R92: 3895 | S92: 345303 | AD92: 80 | AL92: =(1+alloc1*Simulator!E92+alloc2*Simulator!F92+alloc3*Simulator!H92+alloc4*Simulator!J92+alloc5*Simulator!M92) -> 1.081383763 | AM92: =IF(SUM($AM$13:AM91)<>0,0,IF(O92<0,B92-O91,0)) -> 0 | AN92: 0 | AT92: =IF(AQ92<>0,IF((AT91-B92)*(1+alloc1*Simulator!E92+alloc2*Simulator!F92+alloc3*Simulator!H92+alloc4*Simulator!J92+alloc5*Simulator!M92)<0,NA(),(AT91-B92)*(1+alloc1*Simulator!E92+alloc2*Simulator!F92+alloc3*Simulator!H92+alloc4*Simulator!J92+alloc5*Simulator!M92)),NA()) ->  | AV92: 1036.652801 | AX92: 579.9011564 | AZ92: 2642.706194 | BB92: 381255.5415
A93: 81 | B93: 5663.458011 | D93: 0.08 | E93: 0.08 | F93: 0.1057909699 | G93: 0.1057909699 | H93: 0.241960093 | I93: 0.241960093 | J93: 0.1031191722 | K93: 0.1031191722 | L93: -0.3521856839 | M93: -0.3521856839 | O93: -447718 | P93: 7049 | Q93: 2162 | R93: 4297 | S93: 223692 | AD93: 81 | AL93: =(1+alloc1*Simulator!E93+alloc2*Simulator!F93+alloc3*Simulator!H93+alloc4*Simulator!J93+alloc5*Simulator!M93) -> 1.074064464 | AM93: =IF(SUM($AM$13:AM92)<>0,0,IF(O93<0,B93-O92,0)) -> 0 | AN93: 0 | AT93: =IF(AQ93<>0,IF((AT92-B93)*(1+alloc1*Simulator!E93+alloc2*Simulator!F93+alloc3*Simulator!H93+alloc4*Simulator!J93+alloc5*Simulator!M93)<0,NA(),(AT92-B93)*(1+alloc1*Simulator!E93+alloc2*Simulator!F93+alloc3*Simulator!H93+alloc4*Simulator!J93+alloc5*Simulator!M93)),NA()) ->  | AV93: 1146.321306 | AX93: 720.214094 | AZ93: 2915.219869 | BB93: 246982.7979
A94: 82 | B94: 6116.534652 | D94: 0.08 | E94: 0.08 | F94: 0.1139278538 | G94: 0.1139278538 | H94: -0.04112757688 | I94: -0.04112757688 | J94: 0.273038987 | K94: 0.273038987 | L94: -0.3194415957 | M94: -0.3194415957 | O94: -490141 | P94: 7852 | Q94: 2073 | R94: 5470 | S94: 152235 | AD94: 82 | AL94: =(1+alloc1*Simulator!E94+alloc2*Simulator!F94+alloc3*Simulator!H94+alloc4*Simulator!J94+alloc5*Simulator!M94) -> 1.038527009 | AM94: =IF(SUM($AM$13:AM93)<>0,0,IF(O94<0,B94-O93,0)) -> 0 | AN94: 0 | AT94: =IF(AQ94<>0,IF((AT93-B94)*(1+alloc1*Simulator!E94+alloc2*Simulator!F94+alloc3*Simulator!H94+alloc4*Simulator!J94+alloc5*Simulator!M94)<0,NA(),(AT93-B94)*(1+alloc1*Simulator!E94+alloc2*Simulator!F94+alloc3*Simulator!H94+alloc4*Simulator!J94+alloc5*Simulator!M94)),NA()) ->  | AV94: 1276.919232 | AX94: 690.5934335 | AZ94: 3711.188549 | BB94: 168086.2188
A95: 83 | B95: 6605.857424 | D95: 0.08 | E95: 0.08 | F95: 0.08244182626 | G95: 0.08244182626 | H95: -0.02050728837 | I95: -0.02050728837 | J95: 0.3091613601 | K95: 0.3091613601 | L95: 0.3748465252 | M95: 0.3748465252 | O95: -536487 | P95: 8499 | Q95: 2030 | R95: 7161 | S95: 209300 | AD95: 83 | AL95: =(1+alloc1*Simulator!E95+alloc2*Simulator!F95+alloc3*Simulator!H95+alloc4*Simulator!J95+alloc5*Simulator!M95) -> 1.112543513 | AM95: =IF(SUM($AM$13:AM94)<>0,0,IF(O95<0,B95-O94,0)) -> 0 | AN95: 0 | AT95: =IF(AQ95<>0,IF((AT94-B95)*(1+alloc1*Simulator!E95+alloc2*Simulator!F95+alloc3*Simulator!H95+alloc4*Simulator!J95+alloc5*Simulator!M95)<0,NA(),(AT94-B95)*(1+alloc1*Simulator!E95+alloc2*Simulator!F95+alloc3*Simulator!H95+alloc4*Simulator!J95+alloc5*Simulator!M95)),NA()) ->  | AV95: 1382.190786 | AX95: 676.4312348 | AZ95: 4858.544649 | BB95: 231092.7539
A96: 84 | B96: 7134.326018 | D96: 0.08 | E96: 0.08 | F96: 0.03916868583 | G96: 0.03916868583 | H96: 0.0706842385 | I96: 0.0706842385 | J96: -0.2378892897 | K96: -0.2378892897 | L96: -0.1406840687 | M96: -0.1406840687 | O96: -587111 | P96: 8832 | Q96: 2173 | R96: 5457 | S96: 179855 | AD96: 84 | AL96: =(1+alloc1*Simulator!E96+alloc2*Simulator!F96+alloc3*Simulator!H96+alloc4*Simulator!J96+alloc5*Simulator!M96) -> 1.02019638 | AM96: =IF(SUM($AM$13:AM95)<>0,0,IF(O96<0,B96-O95,0)) -> 0 | AN96: 0 | AT96: =IF(AQ96<>0,IF((AT95-B96)*(1+alloc1*Simulator!E96+alloc2*Simulator!F96+alloc3*Simulator!H96+alloc4*Simulator!J96+alloc5*Simulator!M96)<0,NA(),(AT95-B96)*(1+alloc1*Simulator!E96+alloc2*Simulator!F96+alloc3*Simulator!H96+alloc4*Simulator!J96+alloc5*Simulator!M96)),NA()) ->  | AV96: 1436.329383 | AX96: 724.2442616 | AZ96: 3702.748913 | BB96: 198581.685
A97: 85 | B97: 7705.0721 | D97: 0.08 | E97: 0.08 | F97: 0.1201359501 | G97: 0.1201359501 | H97: 0.1213487192 | I97: 0.1213487192 | J97: 0.5206438233 | K97: 0.5206438233 | L97: -0.06429716236 | M97: -0.06429716236 | O97: -642401 | P97: 9893 | Q97: 2437 | R97: 8298 | S97: 168291 | AD97: 85 | AL97: =(1+alloc1*Simulator!E97+alloc2*Simulator!F97+alloc3*Simulator!H97+alloc4*Simulator!J97+alloc5*Simulator!M97) -> 1.121918005 | AM97: =IF(SUM($AM$13:AM96)<>0,0,IF(O97<0,B97-O96,0)) -> 0 | AN97: 0 | AT97: =IF(AQ97<>0,IF((AT96-B97)*(1+alloc1*Simulator!E97+alloc2*Simulator!F97+alloc3*Simulator!H97+alloc4*Simulator!J97+alloc5*Simulator!M97)<0,NA(),(AT96-B97)*(1+alloc1*Simulator!E97+alloc2*Simulator!F97+alloc3*Simulator!H97+alloc4*Simulator!J97+alloc5*Simulator!M97)),NA()) ->  | AV97: 1608.884178 | AX97: 812.1303751 | AZ97: 5630.562264 | BB97: 185813.4462
A98: 86 | B98: 8321.477868 | D98: 0.08 | E98: 0.08 | F98: 0.08121530168 | G98: 0.08121530168 | H98: 0.08662190892 | I98: 0.08662190892 | J98: 0.6648877457 | K98: 0.6648877457 | L98: 0.2035710954 | M98: 0.2035710954 | O98: -702780 | P98: 10696 | Q98: 2648 | R98: 13815 | S98: 202550 | AD98: 86 | AL98: =(1+alloc1*Simulator!E98+alloc2*Simulator!F98+alloc3*Simulator!H98+alloc4*Simulator!J98+alloc5*Simulator!M98) -> 1.152291796 | AM98: =IF(SUM($AM$13:AM97)<>0,0,IF(O98<0,B98-O97,0)) -> 0 | AN98: 0 | AT98: =IF(AQ98<>0,IF((AT97-B98)*(1+alloc1*Simulator!E98+alloc2*Simulator!F98+alloc3*Simulator!H98+alloc4*Simulator!J98+alloc5*Simulator!M98)<0,NA(),(AT97-B98)*(1+alloc1*Simulator!E98+alloc2*Simulator!F98+alloc3*Simulator!H98+alloc4*Simulator!J98+alloc5*Simulator!M98)),NA()) ->  | AV98: 1739.550192 | AX98: 882.4786585 | AZ98: 9374.254115 | BB98: 223639.6929
A99: 87 | B99: 8987.196097 | D99: 0.08 | E99: 0.08 | F99: 0.1088250931 | G99: 0.1088250931 | H99: -0.07198581674 | I99: -0.07198581674 | J99: -0.1156874828 | K99: -0.1156874828 | L99: 0.2797146832 | M99: 0.2797146832 | O99: -768709 | P99: 11860 | Q99: 2457 | R99: 12217 | S99: 259206 | AD99: 87 | AL99: =(1+alloc1*Simulator!E99+alloc2*Simulator!F99+alloc3*Simulator!H99+alloc4*Simulator!J99+alloc5*Simulator!M99) -> 1.052888066 | AM99: =IF(SUM($AM$13:AM98)<>0,0,IF(O99<0,B99-O98,0)) -> 0 | AN99: 0 | AT99: =IF(AQ99<>0,IF((AT98-B99)*(1+alloc1*Simulator!E99+alloc2*Simulator!F99+alloc3*Simulator!H99+alloc4*Simulator!J99+alloc5*Simulator!M99)<0,NA(),(AT98-B99)*(1+alloc1*Simulator!E99+alloc2*Simulator!F99+alloc3*Simulator!H99+alloc4*Simulator!J99+alloc5*Simulator!M99)),NA()) ->  | AV99: 1928.856903 | AX99: 818.9527115 | AZ99: 8289.770253 | BB99: 286194.9988
A100: 88 | B100: 9706.171785 | D100: 0.08 | E100: 0.08 | F100: 0.13329216 | G100: 0.13329216 | H100: 0.1888442043 | I100: 0.1888442043 | J100: 0.1697757785 | K100: 0.1697757785 | L100: -0.04542679824 | M100: -0.04542679824 | O100: -840688 | P100: 13441 | Q100: 2921 | R100: 14291 | S100: 247431 | AD100: 88 | AL100: =(1+alloc1*Simulator!E100+alloc2*Simulator!F100+alloc3*Simulator!H100+alloc4*Simulator!J100+alloc5*Simulator!M100) -> 1.103532955 | AM100: =IF(SUM($AM$13:AM99)<>0,0,IF(O100<0,B100-O99,0)) -> 0 | AN100: 0 | AT100: =IF(AQ100<>0,IF((AT99-B100)*(1+alloc1*Simulator!E100+alloc2*Simulator!F100+alloc3*Simulator!H100+alloc4*Simulator!J100+alloc5*Simulator!M100)<0,NA(),(AT99-B100)*(1+alloc1*Simulator!E100+alloc2*Simulator!F100+alloc3*Simulator!H100+alloc4*Simulator!J100+alloc5*Simulator!M100)),NA()) ->  | AV100: 2185.958406 | AX100: 973.6071846 | AZ100: 9697.172452 | BB100: 273194.0763
A101: 89 | B101: 10482.66553 | D101: 0.08 | E101: 0.08 | F101: 0.1130751587 | G101: 0.1130751587 | H101: 0.1615865411 | I101: 0.1615865411 | J101: 0.4163353054 | K101: 0.4163353054 | L101: 0.007761013236 | M101: 0.007761013236 | O101: -919264 | P101: 14961 | Q101: 3393 | R101: 20241 | S101: 249351 | AD101: 89 | AL101: =(1+alloc1*Simulator!E101+alloc2*Simulator!F101+alloc3*Simulator!H101+alloc4*Simulator!J101+alloc5*Simulator!M101) -> 1.126034456 | AM101: =IF(SUM($AM$13:AM100)<>0,0,IF(O101<0,B101-O100,0)) -> 0 | AN101: 0 | AT101: =IF(AQ101<>0,IF((AT100-B101)*(1+alloc1*Simulator!E101+alloc2*Simulator!F101+alloc3*Simulator!H101+alloc4*Simulator!J101+alloc5*Simulator!M101)<0,NA(),(AT100-B101)*(1+alloc1*Simulator!E101+alloc2*Simulator!F101+alloc3*Simulator!H101+alloc4*Simulator!J101+alloc5*Simulator!M101)),NA()) ->  | AV101: 2433.135999 | AX101: 1130.929002 | AZ101: 13734.44771 | BB101: 275314.3392
A102: 90 | B102: 11321.27877 | D102: 0.08 | E102: 0.08 | F102: 0.07832720012 | G102: 0.07832720012 | H102: 0.1518641848 | I102: 0.1518641848 | J102: 0.1984213497 | K102: 0.1984213497 | L102: 0.174169428 | M102: 0.174169428 | O102: -1005032 | P102: 16133 | Q102: 3908 | R102: 24257 | S102: 292780 | AD102: 90 | AL102: =(1+alloc1*Simulator!E102+alloc2*Simulator!F102+alloc3*Simulator!H102+alloc4*Simulator!J102+alloc5*Simulator!M102) -> 1.115464635 | AM102: =IF(SUM($AM$13:AM101)<>0,0,IF(O102<0,B102-O101,0)) -> 0 | AN102: 0 | AT102: =IF(AQ102<>0,IF((AT101-B102)*(1+alloc1*Simulator!E102+alloc2*Simulator!F102+alloc3*Simulator!H102+alloc4*Simulator!J102+alloc5*Simulator!M102)<0,NA(),(AT101-B102)*(1+alloc1*Simulator!E102+alloc2*Simulator!F102+alloc3*Simulator!H102+alloc4*Simulator!J102+alloc5*Simulator!M102)),NA()) ->  | AV102: 2623.71673 | AX102: 1302.676613 | AZ102: 16459.65536 | BB102: 323265.6801
A103: 91 | B103: 12226.98107 | D103: 0.08 | E103: 0.08 | F103: 0.08268792055 | G103: 0.08268792055 | H103: 0.1984299345 | I103: 0.1984299345 | J103: 0.5610350954 | K103: 0.5610350954 | L103: -0.03664681129 | M103: -0.03664681129 | O103: -1098640 | P103: 17467 | Q103: 4683 | R103: 37866 | S103: 282051 | AD103: 91 | AL103: =(1+alloc1*Simulator!E103+alloc2*Simulator!F103+alloc3*Simulator!H103+alloc4*Simulator!J103+alloc5*Simulator!M103) -> 1.140393607 | AM103: =IF(SUM($AM$13:AM102)<>0,0,IF(O103<0,B103-O102,0)) -> 0 | AN103: 0 | AT103: =IF(AQ103<>0,IF((AT102-B103)*(1+alloc1*Simulator!E103+alloc2*Simulator!F103+alloc3*Simulator!H103+alloc4*Simulator!J103+alloc5*Simulator!M103)<0,NA(),(AT102-B103)*(1+alloc1*Simulator!E103+alloc2*Simulator!F103+alloc3*Simulator!H103+alloc4*Simulator!J103+alloc5*Simulator!M103)),NA()) ->  | AV103: 2840.66641 | AX103: 1561.166648 | AZ103: 25694.09967 | BB103: 311419.0238
A104: 92 | B104: 13205.13956 | D104: 0.08 | E104: 0.08 | F104: 0.07418764264 | G104: 0.07418764264 | H104: -0.03251278314 | I104: -0.03251278314 | J104: 0.4298025552 | K104: 0.4298025552 | L104: 0.5554421386 | M104: 0.5554421386 | O104: -1200793 | P104: 18763 | Q104: 4531 | R104: 54141 | S104: 438714 | AD104: 92 | AL104: =(1+alloc1*Simulator!E104+alloc2*Simulator!F104+alloc3*Simulator!H104+alloc4*Simulator!J104+alloc5*Simulator!M104) -> 1.139440677 | AM104: =IF(SUM($AM$13:AM103)<>0,0,IF(O104<0,B104-O103,0)) -> 0 | AN104: 0 | AT104: =IF(AQ104<>0,IF((AT103-B104)*(1+alloc1*Simulator!E104+alloc2*Simulator!F104+alloc3*Simulator!H104+alloc4*Simulator!J104+alloc5*Simulator!M104)<0,NA(),(AT103-B104)*(1+alloc1*Simulator!E104+alloc2*Simulator!F104+alloc3*Simulator!H104+alloc4*Simulator!J104+alloc5*Simulator!M104)),NA()) ->  | AV104: 3051.408755 | AX104: 1510.408775 | AZ104: 36737.48936 | BB104: 484394.2723
A105: 93 | B105: 14261.55072 | D105: 0.08 | E105: 0.08 | F105: 0.06607964248 | G105: 0.06607964248 | H105: 0.3172650165 | I105: 0.3172650165 | J105: 0.4967858872 | K105: 0.4967858872 | L105: -0.09637902323 | M105: -0.09637902323 | O105: -1312259 | P105: 20003 | Q105: 5969 | R105: 81037 | S105: 396431 | AD105: 93 | AL105: =(1+alloc1*Simulator!E105+alloc2*Simulator!F105+alloc3*Simulator!H105+alloc4*Simulator!J105+alloc5*Simulator!M105) -> 1.150101654 | AM105: =IF(SUM($AM$13:AM104)<>0,0,IF(O105<0,B105-O104,0)) -> 0 | AN105: 0 | AT105: =IF(AQ105<>0,IF((AT104-B105)*(1+alloc1*Simulator!E105+alloc2*Simulator!F105+alloc3*Simulator!H105+alloc4*Simulator!J105+alloc5*Simulator!M105)<0,NA(),(AT104-B105)*(1+alloc1*Simulator!E105+alloc2*Simulator!F105+alloc3*Simulator!H105+alloc4*Simulator!J105+alloc5*Simulator!M105)),NA()) ->  | AV105: 3253.044754 | AX105: 1989.60864 | AZ105: 54988.15561 | BB105: 437708.8255
A106: 94 | B106: 15402.47478 | D106: 0.08 | E106: 0.08 | F106: 0.07949179099 | G106: 0.07949179099 | H106: 0.1126232578 | I106: 0.1126232578 | J106: 0.2116027914 | K106: 0.2116027914 | L106: 0.3762242666 | M106: 0.3762242666 | O106: -1433874 | P106: 21593 | Q106: 6641 | R106: 98185 | S106: 545578 | AD106: 94 | AL106: =(1+alloc1*Simulator!E106+alloc2*Simulator!F106+alloc3*Simulator!H106+alloc4*Simulator!J106+alloc5*Simulator!M106) -> 1.129256536 | AM106: =IF(SUM($AM$13:AM105)<>0,0,IF(O106<0,B106-O105,0)) -> 0 | AN106: 0 | AT106: =IF(AQ106<>0,IF((AT105-B106)*(1+alloc1*Simulator!E106+alloc2*Simulator!F106+alloc3*Simulator!H106+alloc4*Simulator!J106+alloc5*Simulator!M106)<0,NA(),(AT105-B106)*(1+alloc1*Simulator!E106+alloc2*Simulator!F106+alloc3*Simulator!H106+alloc4*Simulator!J106+alloc5*Simulator!M106)),NA()) ->  | AV106: 3511.635108 | AX106: 2213.684847 | AZ106: 66623.80283 | BB106: 602385.5073
A107: 95 | B107: 16634.67276 | D107: 0.08 | E107: 0.08 | F107: 0.1007370794 | G107: 0.1007370794 | H107: 0.1770877577 | I107: 0.1770877577 | J107: -0.1712117136 | K107: -0.1712117136 | L107: 0.350355136 | M107: 0.350355136 | O107: -1566549 | P107: 23768 | Q107: 7817 | R107: 81375 | S107: 736724 | AD107: 95 | AL107: =(1+alloc1*Simulator!E107+alloc2*Simulator!F107+alloc3*Simulator!H107+alloc4*Simulator!J107+alloc5*Simulator!M107) -> 1.103405602 | AM107: =IF(SUM($AM$13:AM106)<>0,0,IF(O107<0,B107-O106,0)) -> 0 | AN107: 0 | AT107: =IF(AQ107<>0,IF((AT106-B107)*(1+alloc1*Simulator!E107+alloc2*Simulator!F107+alloc3*Simulator!H107+alloc4*Simulator!J107+alloc5*Simulator!M107)<0,NA(),(AT106-B107)*(1+alloc1*Simulator!E107+alloc2*Simulator!F107+alloc3*Simulator!H107+alloc4*Simulator!J107+alloc5*Simulator!M107)),NA()) ->  | AV107: 3865.386973 | AX107: 2605.701333 | AZ107: 55217.02738 | BB107: 813434.3637
A108: 96 | B108: 17965.44658 | D108: 0.08 | E108: 0.08 | F108: 0.05536802693 | G108: 0.05536802693 | H108: 0.1344377655 | I108: 0.1344377655 | J108: 0.420995102 | K108: 0.420995102 | L108: 0.07461972888 | M108: 0.07461972888 | O108: -1711276 | P108: 25084 | Q108: 8868 | R108: 115633 | S108: 791698 | AD108: 96 | AL108: =(1+alloc1*Simulator!E108+alloc2*Simulator!F108+alloc3*Simulator!H108+alloc4*Simulator!J108+alloc5*Simulator!M108) -> 1.121985839 | AM108: =IF(SUM($AM$13:AM107)<>0,0,IF(O108<0,B108-O107,0)) -> 0 | AN108: 0 | AT108: =IF(AQ108<>0,IF((AT107-B108)*(1+alloc1*Simulator!E108+alloc2*Simulator!F108+alloc3*Simulator!H108+alloc4*Simulator!J108+alloc5*Simulator!M108)<0,NA(),(AT107-B108)*(1+alloc1*Simulator!E108+alloc2*Simulator!F108+alloc3*Simulator!H108+alloc4*Simulator!J108+alloc5*Simulator!M108)),NA()) ->  | AV108: 4079.405823 | AX108: 2956.005998 | AZ108: 78463.12546 | BB108: 874132.6153
A109: 97 | B109: =(prepen1*(1+rinf)^(A109-1)/100000)-(pension/100000)-(income*(1+incrate)^(A109-1)/100000) -> 19402.68231 | D109: =IF(E109<>"",E109,_min1) -> 0.08 | E109: 0.08 | F109: 0.113987432 | G109: =IF(F109<>"",F109,NORMINV(RAND(),mean2,stdev2)) -> 0.113987432 | H109: 0.1459607108 | I109: =IF(H109<>"",H109,NORMINV(RAND(),mean3,stdev3)) -> 0.1459607108 | J109: 0.5272359904 | K109: =IF(J109<>"",J109,NORMINV(RAND(),mean4,stdev4)) -> 0.5272359904 | L109: =IF(M109<>"",M109,NORMINV(RAND(),mean5,stdev5)) -> -0.07607099136 | M109: -0.07607099136 | O109: -1869133 | P109: 27943 | Q109: 10162 | R109: 176599 | S109: 731473 | AD109: 97 | AL109: =(1+alloc1*Simulator!E109+alloc2*Simulator!F109+alloc3*Simulator!H109+alloc4*Simulator!J109+alloc5*Simulator!M109) -> 1.125707385 | AM109: =IF(SUM($AM$13:AM108)<>0,0,IF(O109<0,B109-O108,0)) -> 0 | AN109: 0 | AT109: =IF(AQ109<>0,IF((AT108-B109)*(1+alloc1*Simulator!E109+alloc2*Simulator!F109+alloc3*Simulator!H109+alloc4*Simulator!J109+alloc5*Simulator!M109)<0,NA(),(AT108-B109)*(1+alloc1*Simulator!E109+alloc2*Simulator!F109+alloc3*Simulator!H109+alloc4*Simulator!J109+alloc5*Simulator!M109)),NA()) ->  | AV109: 4544.406817 | AX109: 3387.466734 | AZ109: 119831.7091 | BB109: 807636.4807
A110: 98 | B110: 20954.89689 | D110: =IF(E110<>"",E110,_min1) -> 0.08 | E110: 0.08 | F110: 0.09173689777 | G110: =IF(F110<>"",F110,NORMINV(RAND(),mean2,stdev2)) -> 0.09173689777 | H110: -0.06755837833 | I110: =IF(H110<>"",H110,NORMINV(RAND(),mean3,stdev3)) -> -0.06755837833 | J110: 0.4292751631 | K110: =IF(J110<>"",J110,NORMINV(RAND(),mean4,stdev4)) -> 0.4292751631 | L110: =IF(M110<>"",M110,NORMINV(RAND(),mean5,stdev5)) -> -0.02459290308 | M110: -0.02459290308 | O110: -2041295 | P110: 30506 | Q110: 9475 | R110: 252409 | S110: 713484 | AD110: 98 | AL110: =(1+alloc1*Simulator!E110+alloc2*Simulator!F110+alloc3*Simulator!H110+alloc4*Simulator!J110+alloc5*Simulator!M110) -> 1.07613024 | AM110: =IF(SUM($AM$13:AM109)<>0,0,IF(O110<0,B110-O109,0)) -> 0 | AN110: 0 | AT110: =IF(AQ110<>0,IF((AT109-B110)*(1+alloc1*Simulator!E110+alloc2*Simulator!F110+alloc3*Simulator!H110+alloc4*Simulator!J110+alloc5*Simulator!M110)<0,NA(),(AT109-B110)*(1+alloc1*Simulator!E110+alloc2*Simulator!F110+alloc3*Simulator!H110+alloc4*Simulator!J110+alloc5*Simulator!M110)),NA()) ->  | AV110: 4961.296601 | AX110: 3158.614975 | AZ110: 171272.4856 | BB110: 787774.355
A111: 99 | B111: 22631.28865 | D111: =IF(E111<>"",E111,_min1) -> 0.08 | E111: 0.08 | F111: 0.1007848951 | G111: =IF(F111<>"",F111,NORMINV(RAND(),mean2,stdev2)) -> 0.1007848951 | H111: 0.007417770774 | I111: =IF(H111<>"",H111,NORMINV(RAND(),mean3,stdev3)) -> 0.007417770774 | J111: 0.007708301433 | K111: =IF(J111<>"",J111,NORMINV(RAND(),mean4,stdev4)) -> 0.007708301433 | L111: =IF(M111<>"",M111,NORMINV(RAND(),mean5,stdev5)) -> -0.4606477186 | M111: -0.4606477186 | O111: -2229040 | P111: 33581 | Q111: 9545 | R111: 254355 | S111: 384819 | AD111: 99 | AL111: =(1+alloc1*Simulator!E111+alloc2*Simulator!F111+alloc3*Simulator!H111+alloc4*Simulator!J111+alloc5*Simulator!M111) -> 1.006268102 | AM111: =IF(SUM($AM$13:AM110)<>0,0,IF(O111<0,B111-O110,0)) -> 0 | AN111: 0 | AT111: =IF(AQ111<>0,IF((AT110-B111)*(1+alloc1*Simulator!E111+alloc2*Simulator!F111+alloc3*Simulator!H111+alloc4*Simulator!J111+alloc5*Simulator!M111)<0,NA(),(AT110-B111)*(1+alloc1*Simulator!E111+alloc2*Simulator!F111+alloc3*Simulator!H111+alloc4*Simulator!J111+alloc5*Simulator!M111)),NA()) ->  | AV111: 5461.320358 | AX111: 3182.044857 | AZ111: 172592.7055 | BB111: 424887.8956

Sheet Example results

Sheet Read me whenever!
A1: Background and Motivation
A2: Mr. P V Subramanyam (subramoney.com) introduced the idea of retirement buckets and urged me to a build a calculator. When I looked around for
A3: what was available I first ound a terrific free version offered by ISG Planning (and stopped looking!)
A4: This simulator is inspired by and influenced by the free Investment Income Simulator available at | J4: ISG Planning
A5: That said the simulator has been bulit independently from the ground-up. Why do this when something is already available for free? I believe my version offers
A6: additional flexibility and features. These include:
A7: 1. an extra investment bucket with information on how long the initial allocation to bucket 1 will last.
A8: 2. a standard retirment calculator and comparison with the bucket stratergy
A9: 3. Choice of defining the volatility in each bucket
A10: 4. Choice of including annuity and additonal income
A11: Some useful features in the ISG version are not (yet!) available. There are also some differences. For example:
A12: a. Correlation among the different kind of stocks
A13: b. Dividends from stocks is not considered
A14: c. The exact nature of the Monte Carlo simulation used by ISG is not known. I have simply used random returns that obey a Normal distribution without any averaging
A15: Sometimes the random returns may not reflect historic market trends. As this is only a informative and practice tool I don't intende to change this unless there is interest from users
A16: d. Of course the ISG version is way more better looking and user friendly than mine. However I am not going to lose sleep over this.
A17: I made this calculator because I believe diversification (ie. Additional buckets) with a wide range in volatility maybe necessary to combat high inflation rates that prevail in India.
A19: Remember: This is a work in progress. I have tried this out several times to weed out errors. No guarantees can however be made that it is error free. If you find a bug kindly bring it to my notice.
A21: Is it correct to use software to predict market returns? Is the math behind this a proven one?
A22: I don't care! Forgive me for soudning a tad irresponsible. This is the only stand to take when there is no universal agreement on which model
A23: (Monte Carlo or Historical) to use for returns and which distribution to use or whether to use one at all!
A24: This is a practice tool and not a calculator. It models a situation with different volatilites and prepares you for handling your retirement corpus.
A25: The more times you play it the better you get. This is not a tool that claims to mimic market conditions. I don't think any toolmaker can make that claim
A26: The bottomline: My idea of making this calculator is to introduce a technique which if used properly might (only might) be a more
A27: efficient way of managing a retirement corpus. Is this suitable for everyone? Unfortunately no. Some experience in at least handling mutual fund investments maybe necessary.
A28: A financial planner with experience in handling retirment buckets would certainly help. Finding one is another matter
A31: Note on error: "You don't have enough funds in Bucket 5 to make this transfer! If didn't want to make a transfer please see the 'Notes' sheet!"
A32: If you got this error and didn't want to make a transfer it means that the returns next year will wipe out the balance in the concerned bucket!
A33: As of now you don’t have a choice but to start all over again. You could of course transfer the balance and proceed. The error will go away but
A34: that is like predicting the future and hence cheating!
